{"text_format":"1","workbook":"xlsx","n_sheets":25,"sheets":["I - Entidade","II - Estabelecimentos","III - Pessoal","III - a) Horário Presença fisic","IV - Capacidade atendimento","V - Valências ","VI - Equipamento","Dados","VALENCIAS","EXAMES_A","EXAMES_B","EXAMES_C","EXAMES_D","EXAMES_E","EXAMES_F","EXAMES_G","EXAMES_H","EXAMES_I","EXAMES_J","EXAMES_L","EXAMES_M","EXAMES_N","EXAMES_O","DISTRITOS","CONCELHOS"],"not_rendered":{"charts":0,"images":0,"macros":1,"external_links":0,"defined_names":72,"comments":0,"pivot_tables":0},"unopened":[],"bounds":{"document_bytes":16777216,"sheet_cells":100000,"rows_first":2000,"rows_last":500,"rows_between":2000,"halvings":0,"cell_chars":16384,"cell_head_chars":4096},"cells_cut":0,"cells_raw":0,"read":"whole","date_system":"1900"}

{"sheet":"I - Entidade","index":0,"n_rows":34,"n_cols":8,"rows_kept":34,"cut":false,"hidden":false,"merged":[[6,1,6,2],[2,4,6,6],[0,1,0,6]]}
[null,"FICHA TÉCNICA"]
[]
[null,"ÁREA CONVENCIONADA",null,null,"Alteração à Ficha Técnica \n(assinale X nos campos alterados)"]
[]
[null,"ARS responsável"]
[]
[null,"I.        Entidade que se propõe exercer a atividade"]
[null,"Pessoa Singular ou Pessoa Coletiva"]
[null,"Nome ou Designação Social"]
[null,"NIF ou NIPC",null,null,null,null,null,{"$f":"VerificaNIFmsg(C10)","v":""}]
[null,"Natureza Jurídica"]
[null,"Residência ou Sede Social"]
[null,"Código Postal"]
[null,"Localidade"]
[null,"Telefone"]
[null,"Email"]
[null,"Fax"]
[null,"Web Site"]
[null,"Código de acesso ao registo comercial"]
[]
[null,"Orgãos de Gestão *"]
[null,"Nome"]
[null,"NIF",null,null,null,null,null,{"$f":"VerificaNIFmsg(C23)","v":""}]
[null,"Cargo"]
[]
[null,"Nome"]
[null,"NIF",null,null,null,null,null,{"$f":"VerificaNIFmsg(C27)","v":""}]
[null,"Cargo"]
[]
[null,"Nome"]
[null,"NIF"]
[null,"Cargo"]
[]
[null," "]

{"sheet":"II - Estabelecimentos","index":1,"n_rows":25,"n_cols":9,"rows_kept":25,"cut":false,"hidden":false,"merged":[[0,1,0,6],[2,8,2,12]]}
[null,"FICHA TÉCNICA"]
[]
[null,"II.        Estabelecimento (s)",null,null,"Novo","Encerrado","Alterado",null,"* replicar linhas tantas vezes quanto necessário"]
[null,"Laboratório central ou instalações",null,null,null,null,null,null,"1 Se não aplicável, utilizar o nome mais usual, por exemplo, posto da Républica"]
[null,"Código"]
[null,"Nome 1"]
[null,"Endereço",null,{"$f":"IF(E7<>\"\",\"Novo\",IF(F7<>\"\",\"Encerrado\",IF(G7<>\"\",\"Alterado\",\"\")))","v":""}]
[null,"Código Postal",null,{"$f":"IF(E8<>\"\",\"Novo\",IF(F8<>\"\",\"Encerrado\",IF(G8<>\"\",\"Alterado\",\"\")))","v":""}]
[null,"Localidade",null,""]
[null,"Telefone",null,""]
[null,"Email",null,""]
[null,"Fax",null,""]
[null,"Latitude",null,""]
[null,"Longitude",null,""]
[]
[null,"Posto (s) de colheita*"]
[null,"Código"]
[null,"Nome 1"]
[null,"Endereço",null,{"$f":"IF(E19<>\"\",\"Novo\",IF(F19<>\"\",\"Encerrado\",IF(G19<>\"\",\"Alterado\",\"\")))","v":""}]
[null,"Código Postal",null,""]
[null,"Localidade",null,""]
[null,"Telefone",null,""]
[null,"Latitude",null,""]
[null,"Longitude",null,""]
[null," "]

{"sheet":"III - Pessoal","index":2,"n_rows":43,"n_cols":8,"rows_kept":43,"cut":false,"hidden":false,"merged":[[0,1,0,5],[6,7,6,11],[2,3,3,5]]}
[null,"FICHA TÉCNICA"]
[]
[null," "]
[null,"III.        Pessoal"]
[null,"**Os horários de presença fisica do Diretor Clinico ou Tecnico, Responsável Técnico e Responsável Tecnico substituto são preenchidas na folha III a) "]
[]
[null," Diretor Clínico (se aplicável) ou Técnico",null,null,null,null,null,"* replicar linhas tantas vezes quanto necessário"]
[null,"Nome"]
[null,"Grupo Profissional"]
[null,"Especialidade"]
[null,"Cédula Profissional"]
[null,"Secção Regional"]
[null,"Residência"]
[]
[]
[null,"Responsável Técnico"]
[null,"Nome"]
[null,"Grupo Profissional"]
[null,"Especialidade"]
[null,"Cédula Profissional"]
[null,"Secção Regional"]
[null,"Residência"]
[]
[null,"Responsável Técnico Substituto (se aplicável)"]
[null,"Nome"]
[null,"Grupo Profissional"]
[null,"Especialidade"]
[null,"Cédula Profissional"]
[null,"Secção Regional"]
[null,"Residência"]
[]
[null,"Outros Médicos *"]
[null,"Nome"]
[null,"Especialidade"]
[null,"Cédula Profissional"]
[null,"Secção Regional"]
[null,"Residência"]
[]
[null,"Técnicos *"]
[null,"Nome"]
[null,"Habilitações Profissionais"]
[null,"Função"]
[null,"Cédula Profissional"]

{"sheet":"III - a) Horário Presença fisic","index":3,"n_rows":29,"n_cols":27,"rows_kept":29,"cut":false,"hidden":false,"merged":[[14,21,14,23],[14,25,14,27],[5,9,5,11],[5,13,5,15],[5,17,5,19],[14,1,14,3],[14,5,14,7],[14,9,14,11],[14,13,14,15],[14,17,14,19],[11,3,11,7],[12,1,12,18],[0,3,0,27],[2,3,2,27],[13,3,13,28],[29,31,29,35],[3,1,3,28],[4,3,4,28],[5,1,5,3],[5,5,5,7],[5,21,5,23],[5,25,5,27],[22,3,22,28],[23,1,23,3],[23,5,23,7],[23,9,23,11],[23,13,23,15],[23,17,23,19],[23,21,23,23],[23,25,23,27],[21,1,21,18]]}
[null,null,null,"FICHA TÉCNICA"]
[]
[null,null,null,"III.        a) Horário de presença física "]
[null," Diretor Clínico (se aplicável) ou Técnico"]
[null,null,null,"Alteração à Ficha Técnica (assinale X os campos alterados)"]
[null,"Segunda",null,null,null,"Terça",null,null,null,"Quarta",null,null,null,"Quinta",null,null,null,"Sexta",null,null,null,"Sábado",null,null,null,"Domingo"]
["Das :",null,":",null,null,null,":",null,null,null,":",null,null,null,":",null,null,null,":",null,null,null,":",null,null,null,":"]
["Às :",null,":",null,null,null,":",null,null,null,":",null,null,null,":",null,null,null,":",null,null,null,":",null,null,null,":"]
["e"]
["Das :",null,":",null,null,null,":",null,null,null,":",null,null,null,":",null,null,null,":",null,null,null,":",null,null,null,":"]
["Às :",null,":",null,null,null,":",null,null,null,":",null,null,null,":",null,null,null,":",null,null,null,":",null,null,null,":"]
[]
[null,"Responsável Técnico"]
[null,null,null,"Alteração à Ficha Técnica (assinale X os campos alterados)"]
[null,"Segunda",null,null,null,"Terça",null,null,null,"Quarta",null,null,null,"Quinta",null,null,null,"Sexta",null,null,null,"Sábado",null,null,null,"Domingo"]
["Das :",null,":",null,null,null,":",null,null,null,":",null,null,null,":",null,null,null,":",null,null,null,":",null,null,null,":"]
["Às :",null,":",null,null,null,":",null,null,null,":",null,null,null,":",null,null,null,":",null,null,null,":",null,null,null,":"]
["e"]
["Das :",null,":",null,null,null,":",null,null,null,":",null,null,null,":",null,null,null,":",null,null,null,":",null,null,null,":"]
["Às :",null,":",null,null,null,":",null,null,null,":",null,null,null,":",null,null,null,":",null,null,null,":",null,null,null,":"]
[]
[null,"Responsável Técnico Substituto"]
[null,null,null,"Alteração à Ficha Técnica (assinale X os campos alterados)"]
[null,"Segunda",null,null,null,"Terça",null,null,null,"Quarta",null,null,null,"Quinta",null,null,null,"Sexta",null,null,null,"Sábado",null,null,null,"Domingo"]
["Das :",null,":",null,null,null,":",null,null,null,":",null,null,null,":",null,null,null,":",null,null,null,":",null,null,null,":"]
["Às :",null,":",null,null,null,":",null,null,null,":",null,null,null,":",null,null,null,":",null,null,null,":",null,null,null,":"]
["e"]
["Das :",null,":",null,null,null,":",null,null,null,":",null,null,null,":",null,null,null,":",null,null,null,":",null,null,null,":"]
["Às :",null,":",null,null,null,":",null,null,null,":",null,null,null,":",null,null,null,":",null,null,null,":",null,null,null,":"]

{"sheet":"IV - Capacidade atendimento","index":4,"n_rows":10,"n_cols":27,"rows_kept":10,"cut":false,"hidden":false,"merged":[[2,3,2,27],[0,3,0,27],[3,3,3,28],[4,5,4,7],[4,1,4,3],[4,9,4,11],[4,13,4,15],[4,17,4,19],[4,21,4,23],[4,25,4,27]]}
[null,null,null,"FICHA TÉCNICA"]
[]
[null,null,null,"IV.        Capacidade de Atendimento"]
[null,null,null,"Alteração à Ficha Técnica (assinale X os campos alterados)"]
[null,"Segunda",null,null,null,"Terça",null,null,null,"Quarta",null,null,null,"Quinta",null,null,null,"Sexta",null,null,null,"Sábado",null,null,null,"Domingo"]
["Das :",null,":",null,null,null,":",null,null,null,":",null,null,null,":",null,null,null,":",null,null,null,":",null,null,null,":"]
["Às :",null,":",null,null,null,":",null,null,null,":",null,null,null,":",null,null,null,":",null,null,null,":",null,null,null,":"]
["e"]
["Das :",null,":",null,null,null,":",null,null,null,":",null,null,null,":",null,null,null,":",null,null,null,":",null,null,null,":"]
["Às :",null,":",null,null,null,":",null,null,null,":",null,null,null,":",null,null,null,":",null,null,null,":",null,null,null,":"]

{"sheet":"V - Valências ","index":5,"n_rows":731,"n_cols":13,"rows_kept":731,"cut":false,"hidden":false,"merged":[[0,0,0,7],[3,12,3,16],[1,5,2,7],[3,1,3,3],[2,8,2,12]]}
["FICHA TÉCNICA"]
[null,null,null,null,null,"Alteração à Ficha Técnica \n(assinale X os campos alterados)"]
[null,null,null,null,{"$f":"IF('I - Entidade'!$C$3=\"\",\"\",CONCATENATE(\"V_\",LEFT('I - Entidade'!$C$3,1)))","v":""},null,null,null,"* replicar linhas tantas vezes quanto necessário"]
[null,"V.        Valências ou Meios Complementares de Diagnóstico e Terapêutica *",null,null,{"$f":"IF('I - Entidade'!$C$3=\"\",\"\",CONCATENATE(\"E_\",LEFT('I - Entidade'!$C$3,1)))","v":""},null,null,null,"** Preencha só uma destas colunas por linha",null,null,null,"* replicar linhas tantas vezes quanto necessário"]
[null,"Valência**","Código de Convencionado do MCDT**","Nomenclatura do MCDT**",{"$f":"IF('I - Entidade'!$C$3=\"\",\"\",CONCATENATE(\"C_\",LEFT('I - Entidade'!$C$3,1)))","v":""}]
[null,null,null,null,null,null,null,null,{"$f":"IF(B6<>\"\",IF(C6<>\"\",\"Erro! Preencha só uma coluna por linha!\",IF(D6<>\"\",\"Erro! Preencha só uma coluna por linha!\",\"\")),IF(C6<>\"\",IF(D6<>\"\",\"Erro! Preencha só uma coluna por linha!\",\"\"),\"\"))","v":""}]
[null,null,null,null,null,null,null,null,{"$f":"IF(B7<>\"\",IF(C7<>\"\",\"Erro! Preencha só uma coluna por linha!\",IF(D7<>\"\",\"Erro! Preencha só uma coluna por linha!\",\"\")),IF(C7<>\"\",IF(D7<>\"\",\"Erro! Preencha só uma coluna por linha!\",\"\"),\"\"))","v":""}]
[null,null,null,null,null,null,null,null,""]
[null,null,null,null,null,null,null,null,""]
[null,null,null,null,null,null,null,null,""]
[null,null,null,null,null,null,null,null,""]
[null,null,null,null,null,null,null,null,""]
[null,null,null,null,null,null,null,null,""]
[null,null,null,null,null,null,null,null,""]
[null,null,null,null,null,null,null,null,""]
[null,null,null,null,null,null,null,null,""]
[null,null,null,null,null,null,null,null,""]
[null,null,null,null,null,null,null,null,""]
[null,null,null,null,null,null,null,null,""]
[null,null,null,null,null,null,null,null,""]
[null,null,null,null,null,null,null,null,""]
[null,null,null,null,null,null,null,null,""]
[null,null,null,null,null,null,null,null,""]
[null,null,null,null,null,null,null,null,""]
[null,null,null,null,null,null,null,null,""]
[null,null,null,null,null,null,null,null,""]
[null,null,null,null,null,null,null,null,""]
[null,null,null,null,null,null,null,null,""]
[null,null,null,null,null,null,null,null,""]
[null,null,null,null,null,null,null,null,""]
[null,null,null,null,null,null,null,null,""]
[null,null,null,null,null,null,null,null,""]
[null,null,null,null,null,null,null,null,""]
[null,null,null,null,null,null,null,null,""]
[null,null,null,null,null,null,null,null,""]
[null,null,null,null,null,null,null,null,""]
[null,null,null,null,null,null,null,null,""]
[null,null,null,null,null,null,null,null,""]
[null,null,null,null,null,null,null,null,""]
[null,null,null,null,null,null,null,null,""]
[null,null,null,null,null,null,null,null,""]
[null,null,null,null,null,null,null,null,""]
[null,null,null,null,null,null,null,null,""]
[null,null,null,null,null,null,null,null,""]
[null,null,null,null,null,null,null,null,""]
[null,null,null,null,null,null,null,null,""]
[null,null,null,null,null,null,null,null,""]
[null,null,null,null,null,null,null,null,""]
[null,null,null,null,null,null,null,null,""]
[null,null,null,null,null,null,null,null,""]
[null,null,null,null,null,null,null,null,""]
[null,null,null,null,null,null,null,null,""]
[null,null,null,null,null,null,null,null,""]
[null,null,null,null,null,null,null,null,""]
[null,null,null,null,null,null,null,null,""]
[null,null,null,null,null,null,null,null,""]
[null,null,null,null,null,null,null,null,""]
[null,null,null,null,null,null,null,null,""]
[null,null,null,null,null,null,null,null,""]
[null,null,null,null,null,null,null,null,""]
[null,null,null,null,null,null,null,null,""]
[null,null,null,null,null,null,null,null,""]
[null,null,null,null,null,null,null,null,""]
[null,null,null,null,null,null,null,null,""]
[null,null,null,null,null,null,null,null,""]
[null,null,null,null,null,null,null,null,""]
[null,null,null,null,null,null,null,null,""]
[null,null,null,null,null,null,null,null,""]
[null,null,null,null,null,null,null,null,""]
[null,null,null,null,null,null,null,null,""]
[null,null,null,null,null,null,null,null,{"$f":"IF(B71<>\"\",IF(C71<>\"\",\"Erro! Preencha só uma coluna por linha!\",IF(D71<>\"\",\"Erro! Preencha só uma coluna por linha!\",\"\")),IF(C71<>\"\",IF(D71<>\"\",\"Erro! Preencha só uma coluna por linha!\",\"\"),\"\"))","v":""}]
[null,null,null,null,null,null,null,null,""]
[null,null,null,null,null,null,null,null,""]
[null,null,null,null,null,null,null,null,""]
[null,null,null,null,null,null,null,null,""]
[null,null,null,null,null,null,null,null,""]
[null,null,null,null,null,null,null,null,""]
[null,null,null,null,null,null,null,null,""]
[null,null,null,null,null,null,null,null,""]
[null,null,null,null,null,null,null,null,""]
[null,null,null,null,null,null,null,null,""]
[null,null,null,null,null,null,null,null,""]
[null,null,null,null,null,null,null,null,""]
[null,null,null,null,null,null,null,null,""]
[null,null,null,null,null,null,null,null,""]
[null,null,null,null,null,null,null,null,""]
[null,null,null,null,null,null,null,null,""]
[null,null,null,null,null,null,null,null,""]
[null,null,null,null,null,null,null,null,""]
[null,null,null,null,null,null,null,null,""]
[null,null,null,null,null,null,null,null,""]
[null,null,null,null,null,null,null,null,""]
[null,null,null,null,null,null,null,null,""]
[null,null,null,null,null,null,null,null,""]
[null,null,null,null,null,null,null,null,""]
[null,null,null,null,null,null,null,null,""]
[null,null,null,null,null,null,null,null,""]
[null,null,null,null,null,null,null,null,""]
[null,null,null,null,null,null,null,null,""]
[null,null,null,null,null,null,null,null,""]
[null,null,null,null,null,null,null,null,""]
[null,null,null,null,null,null,null,null,""]
[null,null,null,null,null,null,null,null,""]
[null,null,null,null,null,null,null,null,""]
[null,null,null,null,null,null,null,null,""]
[null,null,null,null,null,null,null,null,""]
[null,null,null,null,null,null,null,null,""]
[null,null,null,null,null,null,null,null,""]
[null,null,null,null,null,null,null,null,""]
[null,null,null,null,null,null,null,null,""]
[null,null,null,null,null,null,null,null,""]
[null,null,null,null,null,null,null,null,""]
[null,null,null,null,null,null,null,null,""]
[null,null,null,null,null,null,null,null,""]
[null,null,null,null,null,null,null,null,""]
[null,null,null,null,null,null,null,null,""]
[null,null,null,null,null,null,null,null,""]
[null,null,null,null,null,null,null,null,""]
[null,null,null,null,null,null,null,null,""]
[null,null,null,null,null,null,null,null,""]
[null,null,null,null,null,null,null,null,""]
[null,null,null,null,null,null,null,null,""]
[null,null,null,null,null,null,null,null,""]
[null,null,null,null,null,null,null,null,""]
[null,null,null,null,null,null,null,null,""]
[null,null,null,null,null,null,null,null,""]
[null,null,null,null,null,null,null,null,""]
[null,null,null,null,null,null,null,null,""]
[null,null,null,null,null,null,null,null,""]
[null,null,null,null,null,null,null,null,""]
[null,null,null,null,null,null,null,null,""]
[null,null,null,null,null,null,null,null,""]
[null,null,null,null,null,null,null,null,""]
[null,null,null,null,null,null,null,null,""]
[null,null,null,null,null,null,null,null,{"$f":"IF(B135<>\"\",IF(C135<>\"\",\"Erro! Preencha só uma coluna por linha!\",IF(D135<>\"\",\"Erro! Preencha só uma coluna por linha!\",\"\")),IF(C135<>\"\",IF(D135<>\"\",\"Erro! Preencha só uma coluna por linha!\",\"\"),\"\"))","v":""}]
[null,null,null,null,null,null,null,null,""]
[null,null,null,null,null,null,null,null,""]
[null,null,null,null,null,null,null,null,""]
[null,null,null,null,null,null,null,null,""]
[null,null,null,null,null,null,null,null,""]
[null,null,null,null,null,null,null,null,""]
[null,null,null,null,null,null,null,null,""]
[null,null,null,null,null,null,null,null,""]
[null,null,null,null,null,null,null,null,""]
[null,null,null,null,null,null,null,null,""]
[null,null,null,null,null,null,null,null,""]
[null,null,null,null,null,null,null,null,""]
[null,null,null,null,null,null,null,null,""]
[null,null,null,null,null,null,null,null,""]
[null,null,null,null,null,null,null,null,""]
[null,null,null,null,null,null,null,null,""]
[null,null,null,null,null,null,null,null,""]
[null,null,null,null,null,null,null,null,""]
[null,null,null,null,null,null,null,null,""]
[null,null,null,null,null,null,null,null,""]
[null,null,null,null,null,null,null,null,""]
[null,null,null,null,null,null,null,null,""]
[null,null,null,null,null,null,null,null,""]
[null,null,null,null,null,null,null,null,""]
[null,null,null,null,null,null,null,null,""]
[null,null,null,null,null,null,null,null,""]
[null,null,null,null,null,null,null,null,""]
[null,null,null,null,null,null,null,null,""]
[null,null,null,null,null,null,null,null,""]
[null,null,null,null,null,null,null,null,""]
[null,null,null,null,null,null,null,null,""]
[null,null,null,null,null,null,null,null,""]
[null,null,null,null,null,null,null,null,""]
[null,null,null,null,null,null,null,null,""]
[null,null,null,null,null,null,null,null,""]
[null,null,null,null,null,null,null,null,""]
[null,null,null,null,null,null,null,null,""]
[null,null,null,null,null,null,null,null,""]
[null,null,null,null,null,null,null,null,""]
[null,null,null,null,null,null,null,null,""]
[null,null,null,null,null,null,null,null,""]
[null,null,null,null,null,null,null,null,""]
[null,null,null,null,null,null,null,null,""]
[null,null,null,null,null,null,null,null,""]
[null,null,null,null,null,null,null,null,""]
[null,null,null,null,null,null,null,null,""]
[null,null,null,null,null,null,null,null,""]
[null,null,null,null,null,null,null,null,""]
[null,null,null,null,null,null,null,null,""]
[null,null,null,null,null,null,null,null,""]
[null,null,null,null,null,null,null,null,""]
[null,null,null,null,null,null,null,null,""]
[null,null,null,null,null,null,null,null,""]
[null,null,null,null,null,null,null,null,""]
[null,null,null,null,null,null,null,null,""]
[null,null,null,null,null,null,null,null,""]
[null,null,null,null,null,null,null,null,""]
[null,null,null,null,null,null,null,null,""]
[null,null,null,null,null,null,null,null,""]
[null,null,null,null,null,null,null,null,""]
[null,null,null,null,null,null,null,null,""]
[null,null,null,null,null,null,null,null,""]
[null,null,null,null,null,null,null,null,""]
[null,null,null,null,null,null,null,null,{"$f":"IF(B199<>\"\",IF(C199<>\"\",\"Erro! Preencha só uma coluna por linha!\",IF(D199<>\"\",\"Erro! Preencha só uma coluna por linha!\",\"\")),IF(C199<>\"\",IF(D199<>\"\",\"Erro! Preencha só uma coluna por linha!\",\"\"),\"\"))","v":""}]
[null,null,null,null,null,null,null,null,""]
[null,null,null,null,null,null,null,null,""]
[null,null,null,null,null,null,null,null,""]
[null,null,null,null,null,null,null,null,""]
[null,null,null,null,null,null,null,null,""]
[null,null,null,null,null,null,null,null,""]
[null,null,null,null,null,null,null,null,""]
[null,null,null,null,null,null,null,null,""]
[null,null,null,null,null,null,null,null,""]
[null,null,null,null,null,null,null,null,""]
[null,null,null,null,null,null,null,null,""]
[null,null,null,null,null,null,null,null,""]
[null,null,null,null,null,null,null,null,""]
[null,null,null,null,null,null,null,null,""]
[null,null,null,null,null,null,null,null,""]
[null,null,null,null,null,null,null,null,""]
[null,null,null,null,null,null,null,null,""]
[null,null,null,null,null,null,null,null,""]
[null,null,null,null,null,null,null,null,""]
[null,null,null,null,null,null,null,null,""]
[null,null,null,null,null,null,null,null,""]
[null,null,null,null,null,null,null,null,""]
[null,null,null,null,null,null,null,null,""]
[null,null,null,null,null,null,null,null,""]
[null,null,null,null,null,null,null,null,""]
[null,null,null,null,null,null,null,null,""]
[null,null,null,null,null,null,null,null,""]
[null,null,null,null,null,null,null,null,""]
[null,null,null,null,null,null,null,null,""]
[null,null,null,null,null,null,null,null,""]
[null,null,null,null,null,null,null,null,""]
[null,null,null,null,null,null,null,null,""]
[null,null,null,null,null,null,null,null,""]
[null,null,null,null,null,null,null,null,""]
[null,null,null,null,null,null,null,null,""]
[null,null,null,null,null,null,null,null,""]
[null,null,null,null,null,null,null,null,""]
[null,null,null,null,null,null,null,null,""]
[null,null,null,null,null,null,null,null,""]
[null,null,null,null,null,null,null,null,""]
[null,null,null,null,null,null,null,null,""]
[null,null,null,null,null,null,null,null,""]
[null,null,null,null,null,null,null,null,""]
[null,null,null,null,null,null,null,null,""]
[null,null,null,null,null,null,null,null,""]
[null,null,null,null,null,null,null,null,""]
[null,null,null,null,null,null,null,null,""]
[null,null,null,null,null,null,null,null,""]
[null,null,null,null,null,null,null,null,""]
[null,null,null,null,null,null,null,null,""]
[null,null,null,null,null,null,null,null,""]
[null,null,null,null,null,null,null,null,""]
[null,null,null,null,null,null,null,null,""]
[null,null,null,null,null,null,null,null,""]
[null,null,null,null,null,null,null,null,""]
[null,null,null,null,null,null,null,null,""]
[null,null,null,null,null,null,null,null,""]
[null,null,null,null,null,null,null,null,""]
[null,null,null,null,null,null,null,null,""]
[null,null,null,null,null,null,null,null,""]
[null,null,null,null,null,null,null,null,""]
[null,null,null,null,null,null,null,null,""]
[null,null,null,null,null,null,null,null,""]
[null,null,null,null,null,null,null,null,{"$f":"IF(B263<>\"\",IF(C263<>\"\",\"Erro! Preencha só uma coluna por linha!\",IF(D263<>\"\",\"Erro! Preencha só uma coluna por linha!\",\"\")),IF(C263<>\"\",IF(D263<>\"\",\"Erro! Preencha só uma coluna por linha!\",\"\"),\"\"))","v":""}]
[null,null,null,null,null,null,null,null,""]
[null,null,null,null,null,null,null,null,""]
[null,null,null,null,null,null,null,null,""]
[null,null,null,null,null,null,null,null,""]
[null,null,null,null,null,null,null,null,""]
[null,null,null,null,null,null,null,null,""]
[null,null,null,null,null,null,null,null,""]
[null,null,null,null,null,null,null,null,""]
[null,null,null,null,null,null,null,null,""]
[null,null,null,null,null,null,null,null,""]
[null,null,null,null,null,null,null,null,""]
[null,null,null,null,null,null,null,null,""]
[null,null,null,null,null,null,null,null,""]
[null,null,null,null,null,null,null,null,""]
[null,null,null,null,null,null,null,null,""]
[null,null,null,null,null,null,null,null,""]
[null,null,null,null,null,null,null,null,""]
[null,null,null,null,null,null,null,null,""]
[null,null,null,null,null,null,null,null,""]
[null,null,null,null,null,null,null,null,""]
[null,null,null,null,null,null,null,null,""]
[null,null,null,null,null,null,null,null,""]
[null,null,null,null,null,null,null,null,""]
[null,null,null,null,null,null,null,null,""]
[null,null,null,null,null,null,null,null,""]
[null,null,null,null,null,null,null,null,""]
[null,null,null,null,null,null,null,null,""]
[null,null,null,null,null,null,null,null,""]
[null,null,null,null,null,null,null,null,""]
[null,null,null,null,null,null,null,null,""]
[null,null,null,null,null,null,null,null,""]
[null,null,null,null,null,null,null,null,""]
[null,null,null,null,null,null,null,null,""]
[null,null,null,null,null,null,null,null,""]
[null,null,null,null,null,null,null,null,""]
[null,null,null,null,null,null,null,null,""]
[null,null,null,null,null,null,null,null,""]
[null,null,null,null,null,null,null,null,""]
[null,null,null,null,null,null,null,null,""]
[null,null,null,null,null,null,null,null,""]
[null,null,null,null,null,null,null,null,""]
[null,null,null,null,null,null,null,null,""]
[null,null,null,null,null,null,null,null,""]
[null,null,null,null,null,null,null,null,""]
[null,null,null,null,null,null,null,null,""]
[null,null,null,null,null,null,null,null,""]
[null,null,null,null,null,null,null,null,""]
[null,null,null,null,null,null,null,null,""]
[null,null,null,null,null,null,null,null,""]
[null,null,null,null,null,null,null,null,""]
[null,null,null,null,null,null,null,null,""]
[null,null,null,null,null,null,null,null,""]
[null,null,null,null,null,null,null,null,""]
[null,null,null,null,null,null,null,null,""]
[null,null,null,null,null,null,null,null,""]
[null,null,null,null,null,null,null,null,""]
[null,null,null,null,null,null,null,null,""]
[null,null,null,null,null,null,null,null,""]
[null,null,null,null,null,null,null,null,""]
[null,null,null,null,null,null,null,null,""]
[null,null,null,null,null,null,null,null,""]
[null,null,null,null,null,null,null,null,""]
[null,null,null,null,null,null,null,null,""]
[null,null,null,null,null,null,null,null,{"$f":"IF(B327<>\"\",IF(C327<>\"\",\"Erro! Preencha só uma coluna por linha!\",IF(D327<>\"\",\"Erro! Preencha só uma coluna por linha!\",\"\")),IF(C327<>\"\",IF(D327<>\"\",\"Erro! Preencha só uma coluna por linha!\",\"\"),\"\"))","v":""}]
[null,null,null,null,null,null,null,null,""]
[null,null,null,null,null,null,null,null,""]
[null,null,null,null,null,null,null,null,""]
[null,null,null,null,null,null,null,null,""]
[null,null,null,null,null,null,null,null,""]
[null,null,null,null,null,null,null,null,""]
[null,null,null,null,null,null,null,null,""]
[null,null,null,null,null,null,null,null,""]
[null,null,null,null,null,null,null,null,""]
[null,null,null,null,null,null,null,null,""]
[null,null,null,null,null,null,null,null,""]
[null,null,null,null,null,null,null,null,""]
[null,null,null,null,null,null,null,null,""]
[null,null,null,null,null,null,null,null,""]
[null,null,null,null,null,null,null,null,""]
[null,null,null,null,null,null,null,null,""]
[null,null,null,null,null,null,null,null,""]
[null,null,null,null,null,null,null,null,""]
[null,null,null,null,null,null,null,null,""]
[null,null,null,null,null,null,null,null,""]
[null,null,null,null,null,null,null,null,""]
[null,null,null,null,null,null,null,null,""]
[null,null,null,null,null,null,null,null,""]
[null,null,null,null,null,null,null,null,""]
[null,null,null,null,null,null,null,null,""]
[null,null,null,null,null,null,null,null,""]
[null,null,null,null,null,null,null,null,""]
[null,null,null,null,null,null,null,null,""]
[null,null,null,null,null,null,null,null,""]
[null,null,null,null,null,null,null,null,""]
[null,null,null,null,null,null,null,null,""]
[null,null,null,null,null,null,null,null,""]
[null,null,null,null,null,null,null,null,""]
[null,null,null,null,null,null,null,null,""]
[null,null,null,null,null,null,null,null,""]
[null,null,null,null,null,null,null,null,""]
[null,null,null,null,null,null,null,null,""]
[null,null,null,null,null,null,null,null,""]
[null,null,null,null,null,null,null,null,""]
[null,null,null,null,null,null,null,null,""]
[null,null,null,null,null,null,null,null,""]
[null,null,null,null,null,null,null,null,""]
[null,null,null,null,null,null,null,null,""]
[null,null,null,null,null,null,null,null,""]
[null,null,null,null,null,null,null,null,""]
[null,null,null,null,null,null,null,null,""]
[null,null,null,null,null,null,null,null,""]
[null,null,null,null,null,null,null,null,""]
[null,null,null,null,null,null,null,null,""]
[null,null,null,null,null,null,null,null,""]
[null,null,null,null,null,null,null,null,""]
[null,null,null,null,null,null,null,null,""]
[null,null,null,null,null,null,null,null,""]
[null,null,null,null,null,null,null,null,""]
[null,null,null,null,null,null,null,null,""]
[null,null,null,null,null,null,null,null,""]
[null,null,null,null,null,null,null,null,""]
[null,null,null,null,null,null,null,null,""]
[null,null,null,null,null,null,null,null,""]
[null,null,null,null,null,null,null,null,""]
[null,null,null,null,null,null,null,null,""]
[null,null,null,null,null,null,null,null,""]
[null,null,null,null,null,null,null,null,""]
[null,null,null,null,null,null,null,null,{"$f":"IF(B391<>\"\",IF(C391<>\"\",\"Erro! Preencha só uma coluna por linha!\",IF(D391<>\"\",\"Erro! Preencha só uma coluna por linha!\",\"\")),IF(C391<>\"\",IF(D391<>\"\",\"Erro! Preencha só uma coluna por linha!\",\"\"),\"\"))","v":""}]
[null,null,null,null,null,null,null,null,""]
[null,null,null,null,null,null,null,null,""]
[null,null,null,null,null,null,null,null,""]
[null,null,null,null,null,null,null,null,""]
[null,null,null,null,null,null,null,null,""]
[null,null,null,null,null,null,null,null,""]
[null,null,null,null,null,null,null,null,""]
[null,null,null,null,null,null,null,null,""]
[null,null,null,null,null,null,null,null,""]
[null,null,null,null,null,null,null,null,""]
[null,null,null,null,null,null,null,null,""]
[null,null,null,null,null,null,null,null,""]
[null,null,null,null,null,null,null,null,""]
[null,null,null,null,null,null,null,null,""]
[null,null,null,null,null,null,null,null,""]
[null,null,null,null,null,null,null,null,""]
[null,null,null,null,null,null,null,null,""]
[null,null,null,null,null,null,null,null,""]
[null,null,null,null,null,null,null,null,""]
[null,null,null,null,null,null,null,null,""]
[null,null,null,null,null,null,null,null,""]
[null,null,null,null,null,null,null,null,""]
[null,null,null,null,null,null,null,null,""]
[null,null,null,null,null,null,null,null,""]
[null,null,null,null,null,null,null,null,""]
[null,null,null,null,null,null,null,null,""]
[null,null,null,null,null,null,null,null,""]
[null,null,null,null,null,null,null,null,""]
[null,null,null,null,null,null,null,null,""]
[null,null,null,null,null,null,null,null,""]
[null,null,null,null,null,null,null,null,""]
[null,null,null,null,null,null,null,null,""]
[null,null,null,null,null,null,null,null,""]
[null,null,null,null,null,null,null,null,""]
[null,null,null,null,null,null,null,null,""]
[null,null,null,null,null,null,null,null,""]
[null,null,null,null,null,null,null,null,""]
[null,null,null,null,null,null,null,null,""]
[null,null,null,null,null,null,null,null,""]
[null,null,null,null,null,null,null,null,""]
[null,null,null,null,null,null,null,null,""]
[null,null,null,null,null,null,null,null,""]
[null,null,null,null,null,null,null,null,""]
[null,null,null,null,null,null,null,null,""]
[null,null,null,null,null,null,null,null,""]
[null,null,null,null,null,null,null,null,""]
[null,null,null,null,null,null,null,null,""]
[null,null,null,null,null,null,null,null,""]
[null,null,null,null,null,null,null,null,""]
[null,null,null,null,null,null,null,null,""]
[null,null,null,null,null,null,null,null,""]
[null,null,null,null,null,null,null,null,""]
[null,null,null,null,null,null,null,null,""]
[null,null,null,null,null,null,null,null,""]
[null,null,null,null,null,null,null,null,""]
[null,null,null,null,null,null,null,null,""]
[null,null,null,null,null,null,null,null,""]
[null,null,null,null,null,null,null,null,""]
[null,null,null,null,null,null,null,null,""]
[null,null,null,null,null,null,null,null,""]
[null,null,null,null,null,null,null,null,""]
[null,null,null,null,null,null,null,null,""]
[null,null,null,null,null,null,null,null,""]
[null,null,null,null,null,null,null,null,{"$f":"IF(B455<>\"\",IF(C455<>\"\",\"Erro! Preencha só uma coluna por linha!\",IF(D455<>\"\",\"Erro! Preencha só uma coluna por linha!\",\"\")),IF(C455<>\"\",IF(D455<>\"\",\"Erro! Preencha só uma coluna por linha!\",\"\"),\"\"))","v":""}]
[null,null,null,null,null,null,null,null,""]
[null,null,null,null,null,null,null,null,""]
[null,null,null,null,null,null,null,null,""]
[null,null,null,null,null,null,null,null,""]
[null,null,null,null,null,null,null,null,""]
[null,null,null,null,null,null,null,null,""]
[null,null,null,null,null,null,null,null,""]
[null,null,null,null,null,null,null,null,""]
[null,null,null,null,null,null,null,null,""]
[null,null,null,null,null,null,null,null,""]
[null,null,null,null,null,null,null,null,""]
[null,null,null,null,null,null,null,null,""]
[null,null,null,null,null,null,null,null,""]
[null,null,null,null,null,null,null,null,""]
[null,null,null,null,null,null,null,null,""]
[null,null,null,null,null,null,null,null,""]
[null,null,null,null,null,null,null,null,""]
[null,null,null,null,null,null,null,null,""]
[null,null,null,null,null,null,null,null,""]
[null,null,null,null,null,null,null,null,""]
[null,null,null,null,null,null,null,null,""]
[null,null,null,null,null,null,null,null,""]
[null,null,null,null,null,null,null,null,""]
[null,null,null,null,null,null,null,null,""]
[null,null,null,null,null,null,null,null,""]
[null,null,null,null,null,null,null,null,""]
[null,null,null,null,null,null,null,null,""]
[null,null,null,null,null,null,null,null,""]
[null,null,null,null,null,null,null,null,""]
[null,null,null,null,null,null,null,null,""]
[null,null,null,null,null,null,null,null,""]
[null,null,null,null,null,null,null,null,""]
[null,null,null,null,null,null,null,null,""]
[null,null,null,null,null,null,null,null,""]
[null,null,null,null,null,null,null,null,""]
[null,null,null,null,null,null,null,null,""]
[null,null,null,null,null,null,null,null,""]
[null,null,null,null,null,null,null,null,""]
[null,null,null,null,null,null,null,null,""]
[null,null,null,null,null,null,null,null,""]
[null,null,null,null,null,null,null,null,""]
[null,null,null,null,null,null,null,null,""]
[null,null,null,null,null,null,null,null,""]
[null,null,null,null,null,null,null,null,""]
[null,null,null,null,null,null,null,null,""]
[null,null,null,null,null,null,null,null,""]
[null,null,null,null,null,null,null,null,""]
[null,null,null,null,null,null,null,null,""]
[null,null,null,null,null,null,null,null,""]
[null,null,null,null,null,null,null,null,""]
[null,null,null,null,null,null,null,null,""]
[null,null,null,null,null,null,null,null,""]
[null,null,null,null,null,null,null,null,""]
[null,null,null,null,null,null,null,null,""]
[null,null,null,null,null,null,null,null,""]
[null,null,null,null,null,null,null,null,""]
[null,null,null,null,null,null,null,null,""]
[null,null,null,null,null,null,null,null,""]
[null,null,null,null,null,null,null,null,""]
[null,null,null,null,null,null,null,null,""]
[null,null,null,null,null,null,null,null,""]
[null,null,null,null,null,null,null,null,""]
[null,null,null,null,null,null,null,null,""]
[null,null,null,null,null,null,null,null,{"$f":"IF(B519<>\"\",IF(C519<>\"\",\"Erro! Preencha só uma coluna por linha!\",IF(D519<>\"\",\"Erro! Preencha só uma coluna por linha!\",\"\")),IF(C519<>\"\",IF(D519<>\"\",\"Erro! Preencha só uma coluna por linha!\",\"\"),\"\"))","v":""}]
[null,null,null,null,null,null,null,null,""]
[null,null,null,null,null,null,null,null,""]
[null,null,null,null,null,null,null,null,""]
[null,null,null,null,null,null,null,null,""]
[null,null,null,null,null,null,null,null,""]
[null,null,null,null,null,null,null,null,""]
[null,null,null,null,null,null,null,null,""]
[null,null,null,null,null,null,null,null,""]
[null,null,null,null,null,null,null,null,""]
[null,null,null,null,null,null,null,null,""]
[null,null,null,null,null,null,null,null,""]
[null,null,null,null,null,null,null,null,""]
[null,null,null,null,null,null,null,null,""]
[null,null,null,null,null,null,null,null,""]
[null,null,null,null,null,null,null,null,""]
[null,null,null,null,null,null,null,null,""]
[null,null,null,null,null,null,null,null,""]
[null,null,null,null,null,null,null,null,""]
[null,null,null,null,null,null,null,null,""]
[null,null,null,null,null,null,null,null,""]
[null,null,null,null,null,null,null,null,""]
[null,null,null,null,null,null,null,null,""]
[null,null,null,null,null,null,null,null,""]
[null,null,null,null,null,null,null,null,""]
[null,null,null,null,null,null,null,null,""]
[null,null,null,null,null,null,null,null,""]
[null,null,null,null,null,null,null,null,""]
[null,null,null,null,null,null,null,null,""]
[null,null,null,null,null,null,null,null,""]
[null,null,null,null,null,null,null,null,""]
[null,null,null,null,null,null,null,null,""]
[null,null,null,null,null,null,null,null,""]
[null,null,null,null,null,null,null,null,""]
[null,null,null,null,null,null,null,null,""]
[null,null,null,null,null,null,null,null,""]
[null,null,null,null,null,null,null,null,""]
[null,null,null,null,null,null,null,null,""]
[null,null,null,null,null,null,null,null,""]
[null,null,null,null,null,null,null,null,""]
[null,null,null,null,null,null,null,null,""]
[null,null,null,null,null,null,null,null,""]
[null,null,null,null,null,null,null,null,""]
[null,null,null,null,null,null,null,null,""]
[null,null,null,null,null,null,null,null,""]
[null,null,null,null,null,null,null,null,""]
[null,null,null,null,null,null,null,null,""]
[null,null,null,null,null,null,null,null,""]
[null,null,null,null,null,null,null,null,""]
[null,null,null,null,null,null,null,null,""]
[null,null,null,null,null,null,null,null,""]
[null,null,null,null,null,null,null,null,""]
[null,null,null,null,null,null,null,null,""]
[null,null,null,null,null,null,null,null,""]
[null,null,null,null,null,null,null,null,""]
[null,null,null,null,null,null,null,null,""]
[null,null,null,null,null,null,null,null,""]
[null,null,null,null,null,null,null,null,""]
[null,null,null,null,null,null,null,null,""]
[null,null,null,null,null,null,null,null,""]
[null,null,null,null,null,null,null,null,""]
[null,null,null,null,null,null,null,null,""]
[null,null,null,null,null,null,null,null,""]
[null,null,null,null,null,null,null,null,""]
[null,null,null,null,null,null,null,null,{"$f":"IF(B583<>\"\",IF(C583<>\"\",\"Erro! Preencha só uma coluna por linha!\",IF(D583<>\"\",\"Erro! Preencha só uma coluna por linha!\",\"\")),IF(C583<>\"\",IF(D583<>\"\",\"Erro! Preencha só uma coluna por linha!\",\"\"),\"\"))","v":""}]
[null,null,null,null,null,null,null,null,""]
[null,null,null,null,null,null,null,null,""]
[null,null,null,null,null,null,null,null,""]
[null,null,null,null,null,null,null,null,""]
[null,null,null,null,null,null,null,null,""]
[null,null,null,null,null,null,null,null,""]
[null,null,null,null,null,null,null,null,""]
[null,null,null,null,null,null,null,null,""]
[null,null,null,null,null,null,null,null,""]
[null,null,null,null,null,null,null,null,""]
[null,null,null,null,null,null,null,null,""]
[null,null,null,null,null,null,null,null,""]
[null,null,null,null,null,null,null,null,""]
[null,null,null,null,null,null,null,null,""]
[null,null,null,null,null,null,null,null,""]
[null,null,null,null,null,null,null,null,""]
[null,null,null,null,null,null,null,null,""]
[null,null,null,null,null,null,null,null,""]
[null,null,null,null,null,null,null,null,""]
[null,null,null,null,null,null,null,null,""]
[null,null,null,null,null,null,null,null,""]
[null,null,null,null,null,null,null,null,""]
[null,null,null,null,null,null,null,null,""]
[null,null,null,null,null,null,null,null,""]
[null,null,null,null,null,null,null,null,""]
[null,null,null,null,null,null,null,null,""]
[null,null,null,null,null,null,null,null,""]
[null,null,null,null,null,null,null,null,""]
[null,null,null,null,null,null,null,null,""]
[null,null,null,null,null,null,null,null,""]
[null,null,null,null,null,null,null,null,""]
[null,null,null,null,null,null,null,null,""]
[null,null,null,null,null,null,null,null,""]
[null,null,null,null,null,null,null,null,""]
[null,null,null,null,null,null,null,null,""]
[null,null,null,null,null,null,null,null,""]
[null,null,null,null,null,null,null,null,""]
[null,null,null,null,null,null,null,null,""]
[null,null,null,null,null,null,null,null,""]
[null,null,null,null,null,null,null,null,""]
[null,null,null,null,null,null,null,null,""]
[null,null,null,null,null,null,null,null,""]
[null,null,null,null,null,null,null,null,""]
[null,null,null,null,null,null,null,null,""]
[null,null,null,null,null,null,null,null,""]
[null,null,null,null,null,null,null,null,""]
[null,null,null,null,null,null,null,null,""]
[null,null,null,null,null,null,null,null,""]
[null,null,null,null,null,null,null,null,""]
[null,null,null,null,null,null,null,null,""]
[null,null,null,null,null,null,null,null,""]
[null,null,null,null,null,null,null,null,""]
[null,null,null,null,null,null,null,null,""]
[null,null,null,null,null,null,null,null,""]
[null,null,null,null,null,null,null,null,""]
[null,null,null,null,null,null,null,null,""]
[null,null,null,null,null,null,null,null,""]
[null,null,null,null,null,null,null,null,""]
[null,null,null,null,null,null,null,null,""]
[null,null,null,null,null,null,null,null,""]
[null,null,null,null,null,null,null,null,""]
[null,null,null,null,null,null,null,null,""]
[null,null,null,null,null,null,null,null,""]
[null,null,null,null,null,null,null,null,{"$f":"IF(B647<>\"\",IF(C647<>\"\",\"Erro! Preencha só uma coluna por linha!\",IF(D647<>\"\",\"Erro! Preencha só uma coluna por linha!\",\"\")),IF(C647<>\"\",IF(D647<>\"\",\"Erro! Preencha só uma coluna por linha!\",\"\"),\"\"))","v":""}]
[null,null,null,null,null,null,null,null,""]
[null,null,null,null,null,null,null,null,""]
[null,null,null,null,null,null,null,null,""]
[null,null,null,null,null,null,null,null,""]
[null,null,null,null,null,null,null,null,""]
[null,null,null,null,null,null,null,null,""]
[null,null,null,null,null,null,null,null,""]
[null,null,null,null,null,null,null,null,""]
[null,null,null,null,null,null,null,null,""]
[null,null,null,null,null,null,null,null,""]
[null,null,null,null,null,null,null,null,""]
[null,null,null,null,null,null,null,null,""]
[null,null,null,null,null,null,null,null,""]
[null,null,null,null,null,null,null,null,""]
[null,null,null,null,null,null,null,null,""]
[null,null,null,null,null,null,null,null,""]
[null,null,null,null,null,null,null,null,""]
[null,null,null,null,null,null,null,null,""]
[null,null,null,null,null,null,null,null,""]
[null,null,null,null,null,null,null,null,""]
[null,null,null,null,null,null,null,null,""]
[null,null,null,null,null,null,null,null,""]
[null,null,null,null,null,null,null,null,""]
[null,null,null,null,null,null,null,null,""]
[null,null,null,null,null,null,null,null,""]
[null,null,null,null,null,null,null,null,""]
[null,null,null,null,null,null,null,null,""]
[null,null,null,null,null,null,null,null,""]
[null,null,null,null,null,null,null,null,""]
[null,null,null,null,null,null,null,null,""]
[null,null,null,null,null,null,null,null,""]
[null,null,null,null,null,null,null,null,""]
[null,null,null,null,null,null,null,null,""]
[null,null,null,null,null,null,null,null,""]
[null,null,null,null,null,null,null,null,""]
[null,null,null,null,null,null,null,null,""]
[null,null,null,null,null,null,null,null,""]
[null,null,null,null,null,null,null,null,""]
[null,null,null,null,null,null,null,null,""]
[null,null,null,null,null,null,null,null,""]
[null,null,null,null,null,null,null,null,""]
[null,null,null,null,null,null,null,null,""]
[null,null,null,null,null,null,null,null,""]
[null,null,null,null,null,null,null,null,""]
[null,null,null,null,null,null,null,null,""]
[null,null,null,null,null,null,null,null,""]
[null,null,null,null,null,null,null,null,""]
[null,null,null,null,null,null,null,null,""]
[null,null,null,null,null,null,null,null,""]
[null,null,null,null,null,null,null,null,""]
[null,null,null,null,null,null,null,null,""]
[null,null,null,null,null,null,null,null,""]
[null,null,null,null,null,null,null,null,""]
[null,null,null,null,null,null,null,null,""]
[null,null,null,null,null,null,null,null,""]
[null,null,null,null,null,null,null,null,""]
[null,null,null,null,null,null,null,null,""]
[null,null,null,null,null,null,null,null,""]
[null,null,null,null,null,null,null,null,""]
[null,null,null,null,null,null,null,null,""]
[null,null,null,null,null,null,null,null,""]
[null,null,null,null,null,null,null,null,""]
[null,null,null,null,null,null,null,null,""]
[null,null,null,null,null,null,null,null,{"$f":"IF(B711<>\"\",IF(C711<>\"\",\"Erro! Preencha só uma coluna por linha!\",IF(D711<>\"\",\"Erro! Preencha só uma coluna por linha!\",\"\")),IF(C711<>\"\",IF(D711<>\"\",\"Erro! Preencha só uma coluna por linha!\",\"\"),\"\"))","v":""}]
[null,null,null,null,null,null,null,null,""]
[null,null,null,null,null,null,null,null,""]
[null,null,null,null,null,null,null,null,""]
[null,null,null,null,null,null,null,null,""]
[null,null,null,null,null,null,null,null,""]
[null,null,null,null,null,null,null,null,""]
[null,null,null,null,null,null,null,null,""]
[null,null,null,null,null,null,null,null,""]
[null,null,null,null,null,null,null,null,""]
[null,null,null,null,null,null,null,null,""]
[null,null,null,null,null,null,null,null,""]
[null,null,null,null,null,null,null,null,""]
[null,null,null,null,null,null,null,null,""]
[null,null,null,null,null,null,null,null,""]
[null,null,null,null,null,null,null,null,{"$f":"IF(B726<>\"\",IF(C726<>\"\",\"Erro! Preencha só um valor por linha!\",IF(D726<>\"\",\"Erro! Preencha só um valorpor linha!\",\"\")),IF(C726<>\"\",IF(D726<>\"\",\"Erro! Preencha só um valorpor linha!\",\"\"),\"\"))","v":""}]
[null,null,null,null,null,null,null,null,""]
[null,null,null,null,null,null,null,null,""]
[null,null,null,null,null,null,null,null,""]
[null,null,null,null,null,null,null,null,""]
[null,null,null,null,null,null,null,null,""]

{"sheet":"VI - Equipamento","index":6,"n_rows":5,"n_cols":9,"rows_kept":5,"cut":false,"hidden":false,"merged":[[16,1,16,3],[17,1,17,3],[11,1,11,3],[12,1,12,3],[13,1,13,3],[14,1,14,3],[15,1,15,3],[3,8,3,13],[7,1,7,3],[8,1,8,3],[9,1,9,3],[10,1,10,3],[0,0,0,6],[1,4,2,6],[4,1,4,3],[5,1,5,3],[6,1,6,3]]}
["FICHA TÉCNICA"]
[null,null,null,null,"Alteração à Ficha Técnica \n(assinale X os campos alterados)"]
[]
[null,null,null,null,null,null,null,null,"* replicar linhas tantas vezes quanto necessário"]
[null,"VI.        Equipamento médico e geral *"]

{"sheet":"Dados","index":7,"n_rows":26,"n_cols":9,"rows_kept":26,"cut":false,"hidden":true,"merged":[]}
[]
["A","A - Análises Clínicas","Médico","Análises Clínicas","Norte","NORTE","Pública",null,"Médico"]
["M","M - Radiologia","Psicólogo","Anatomia Patológica","Centro","CENTRO","Privada",null,"Psicólogo"]
["G","G - Medicina Física e Reabilitação","Farmacêutico","Anestesiologia","Sul","LISBOA E VALE DO TEJO","IPSS",null,"Farmacêutico"]
["F","F - Endoscopia Gastrenterológica",null,"Angiologia ","Outro","ALENTEJO","Cooperativa",null,"Médico Dentista"]
["C","C - Cardiologia",null,"Cardiologia",null,"ALGARVE"]
["B","B - Anatomia Patológica",null,"Cardiologia Pediátrica"]
["D","D - Medicina Nuclear",null,"Cirurgia Vascular "]
["I","I - Pneumologia e Imunoalergologia",null,"Estomatologia"]
["N","N - Consultas",null,"Gastroenterologia"]
["E","E - Electroencefalografia",null,"Ginecologia/Obstetrícia"]
["L","L - Neurofisiologia",null,"Imuno-alergologia"]
["H","H - Otorrinolaringologia",null,"Medicina Geral e Familiar"]
["O","O - Psicologia",null,"Medicina Interna"]
["J","J - Urologia",null,"Medicina Nuclear"]
[null,null,null,"MFR"]
[null,null,null,"Nefrologia"]
[null,null,null,"Neurologia"]
[null,null,null,"Neurorradiologia"]
[null,null,null,"Oftalmologia"]
[null,null,null,"Ortopedia"]
[null,null,null,"Otorrinolaringologia"]
[null,null,null,"Pneumologia"]
[null,null,null,"Radiologia"]
[null,null,null,"Radioncologia"]
[null,null,null,"Urologia"]

{"sheet":"VALENCIAS","index":8,"n_rows":29,"n_cols":12,"rows_kept":29,"cut":false,"hidden":true,"merged":[]}
["valencia A","valencia B","valencia C","valencia D","valencia E","valencia F","valencia G","valencia H","valencia_I","valencia_J","valencia_L","valencia_M"]
["BIOQUÍMICA","ANATOMIA PATOLÓGICA -Diagnóstico por Citopatologia ","ACTOS DIAGNÓSTICOS - I ELECTROCARDIOLOGIA"," I  EXAMES - APARELHO CARDIOVASCULAR","ELECTROENCEFALOGRAFIA","GASTRENTEROLOGIA","Actos complementares de diagnóstico","Audiometria","PNEUMOLOGIA - Fisiopatologia respiratória","BEXIGA E URETRA","POTENCIAIS EVOCADOS","RADIOLOGIA CONVENCIONAL - CABEÇA E PESCOÇO"]
["HEMATOLOGIA","ANATOMIA PATOLÓGICA -Diagnóstico por Histopatologia","ACTOS DIAGNÓSTICOS -II ECOCARDIOGRAFIA"," I  EXAMES - SISTEMA NERVOSO CENTRAL",null,"ENDOSCOPIA","Estudos especificos","Impedanciometria","PNEUMOLOGIA - Ventilação não invasiva","URETER","ELECTROMIOGRAFIA","RADIOLOGIA CONVENCIONAL - CABEÇA E PESCOÇO - Exames especiais de cabeça e pescoço"]
["HEMOSTASE","ANATOMIA PATOLÓGICA -Exames Especiais","ACTOS DIAGNÓSTICOS -  V OUTROS ESTUDOS "," I  EXAMES - APARELHO DIGESTIVO",null,null,"Provas funcionais respiratórias ","Audiometria de respostas eléctricas evocadas","PNEUMOLOGIA - Terapêutica inalatória","ECOGRAFIA","MONITORIZAÇÃO NEUROFISIOLÓGICA INTRA-OPERATÓRIA","RADIOLOGIA CONVENCIONAL - COLUNA VERTEBRAL E BACIA"]
["IMUNOLOGIA",null,null," I  EXAMES - SISTEMA MUSCULO-ESQUELÉTICO",null,null,"Electroterapia","Reabilitação Auditiva","PNEUMOLOGIA - Técnicas endoscópicas - Técnicas endoscópicas diagnósticas","URODINÂMICA",null,"RADIOLOGIA CONVENCIONAL - TÓRAX"]
["MICROBIOLOGIA - Serologia",null,null," I  EXAMES - APARELHO RESPIRATÓRIO",null,null,"Vibroterapia","Vestibulometria","PNEUMOLOGIA - Técnicas endoscópicas - Técnicas endoscópicas terapêuticas",null,null,"RADIOLOGIA CONVENCIONAL - MAMA"]
["MICROBIOLOGIA - Antigénios",null,null," I  EXAMES - GLÂNDULAS ENDÓCRINAS",null,null,"Fototerapia","Endoscopia ","PNEUMOLOGIA - Técnicas não Endoscópicas",null,null,"RADIOLOGIA CONVENCIONAL - ABDÓMEN E TRACTO DIGESTIVO - Abdómen e Pélvis"]
["MICROBIOLOGIA - Bacteriologia",null,null," I  EXAMES - APARELHO URINÁRIO",null,null,"Termoterapia","Laringologia","PNEUMOLOGIA - Reabilitação Respiratória",null,null,"RADIOLOGIA CONVENCIONAL - ABDÓMEN E TRACTO DIGESTIVO - Tracto Digestivo"]
["MICROBIOLOGIA - Micobacteriologia",null,null,null,null,null,"Hidrocinesibalneoterapia","Rinologia","PNEUMOLOGIA - Alergologia Respiratória",null,null,"RADIOLOGIA CONVENCIONAL - APARELHO GENITO-URINÁRIO"]
["MICROBIOLOGIA - Micologia",null,null,null,null,null,"Massoterapia","Outros exames","IMUNOALERGOLOGIA - SENSIBILIDADE CUTÂNEA - Testes por picada",null,null,"RADIOLOGIA CONVENCIONAL - ESQUELETO APENDICULAR - Membros superiores"]
["MICROBIOLOGIA - Parasitologia",null,null,null,null,null,"Cinesiterapia","Outros Procedimentos","IMUNOALERGOLOGIA - SENSIBILIDADE CUTÂNEA - Testes intradérmicos",null,null,"RADIOLOGIA CONVENCIONAL - ESQUELETO APENDICULAR - Membros inferiores"]
["CITOMETRIA DE FLUXO - Anticorpos, pesquisa em células e em soro",null,null,null,null,null,"Ventiloterapia",null,"IMUNOALERGOLOGIA - PROVAS DE PROVOCAÇÃO OFTÁLMICA",null,null,"RADIOLOGIA CONVENCIONAL - ESQUELETO APENDICULAR - Exames especiais membros "]
["CITOMETRIA DE FLUXO - Doenças linfoproliferativas, imunofenotipagem",null,null,null,null,null,"Mecanoterapia",null,"IMUNOALERGOLOGIA - PROVAS DE FUNÇÃO RESPIRATÓRIA",null,null,"TOMOGRAFIAS CLÁSSICAS (CONVENCIONAIS)"]
["CITOMETRIA DE FLUXO - Imunodeficiências e doenças autoimunes, caracterização de distúrbios da imunidade",null,null,null,null,null,"Treinos Terapêuticos",null,"IMUNOALERGOLOGIA -Imunoterapia",null,null,"ECOGRAFIA - Cabeça e pescoço"]
["IMUNOHEMOTERAPIA / MEDICINA TRANSFUSIONAL",null,null,null,null,null,"Terapia da Fala",null,"IMUNOALERGOLOGIA -Aerossol terapêutico",null,null,"ECOGRAFIA - Mama"]
[null,null,null,null,null,null,"Terapia Ocupacional",null,null,null,null,"ECOGRAFIA - Abdómen e pélvis"]
[null,null,null,null,null,null,"Técnicas Terapêuticas Médicas",null,null,null,null,"ECOGRAFIA - Sistema músculo-esquelético"]
[null,null,null,null,null,null,null,null,null,null,null,"ECOGRAFIA - Estudos por Doppler (duplex ou triplex)"]
[null,null,null,null,null,null,null,null,null,null,null,"ECOGRAFIA - Exames especiais"]
[null,null,null,null,null,null,null,null,null,null,null,"TOMOGRAFIA COMPUTORIZADA (TC) - Cabeça e Pescoço"]
[null,null,null,null,null,null,null,null,null,null,null,"TOMOGRAFIA COMPUTORIZADA (TC) - Coluna Vertebral e Bacia"]
[null,null,null,null,null,null,null,null,null,null,null,"TOMOGRAFIA COMPUTORIZADA (TC) - Tórax"]
[null,null,null,null,null,null,null,null,null,null,null,"TOMOGRAFIA COMPUTORIZADA (TC) - Abdomen e Pélvis"]
[null,null,null,null,null,null,null,null,null,null,null,"TOMOGRAFIA COMPUTORIZADA (TC) - Membros"]
[null,null,null,null,null,null,null,null,null,null,null,"TOMOGRAFIA COMPUTORIZADA (TC) - Suplementos e Exames Especiais"]
[null,null,null,null,null,null,null,null,null,null,null,"PROCEDIMENTOS DE INTERVENÇÃO - Não vasculares"]
[null,null,null,null,null,null,null,null,null,null,null,"PROCEDIMENTOS DE INTERVENÇÃO - Não vasculares - Procedimentos específicos de cada região - Mama"]
[null,null,null,null,null,null,null,null,null,null,null,"OSTEODENSITOMETRIA"]
[null,null,null,null,null,null,null,null,null,null,null,"DIVERSOS"]

{"sheet":"EXAMES_A","index":9,"n_rows":265,"n_cols":2,"rows_kept":265,"cut":false,"hidden":true,"merged":[]}
["codigoExameA","DesignacaoExameA"]
["684.0","17 alfa-hidroxiprogesterona, s "]
["1025.6","17-cetosteróides, u "]
["1050.7","17-hidroxicorticosteróides (17-OHCS), u "]
["569.0","5'-nucleotidase, s "]
["651.3","Ácido 5-hidroxindolacético (5 HIAA), doseamento, u"]
["338.7","Ácido úrico, s/u/l "]
["653.0","Ácido vanilmandélico (VMA), u "]
["1318.2","Albumina de baixa concentração, l/u/LCR"]
["1008.6","Albumina, s "]
["356.5","Aldolase, s "]
["1009.4","Aldosterona, s "]
["1010.8","Aldosterona, u"]
["359.0","Alfa1-quimotripsina, s "]
["1011.6","Alfa-fetoproteína, s/l "]
["361.1","Alumínio, s/l "]
["1012.4","Amilase, s/u/l "]
["524.0","Aminotransferase da alanina (ALT), s "]
["523.1","Aminotransferase do aspartato (AST), s "]
["369.7","Amónia, s "]
["1015.9","Angiotensina I, s "]
["1016.7","Angiotensina II, s "]
["202.0","Antigénio carcinembrionário (CEA), s "]
["1018.3","Antigénio específico da próstata (PSA) livre, s"]
["1017.5","Antigénio específico da próstata (PSA) total, s "]
["1311.5","Apolipoproteínas A1 e B, cada, s "]
["1312.3","Apolipoproteínas C2 e C3, cada, s "]
["383.2","Beta2-microglobulina, s/u/l"]
["1313.1","Bilirrubina direta, s/l"]
["1314.0","Bilirrubina total, s/l"]
["209.7","CA 125 "]
["1301.8","CA 15-3 "]
["208.9","CA 19-9 "]
["1022.1","Cálcio ionizado, s "]
["390.5","Cálcio total, s/u "]
["661.0","Calcitonina, s "]
["1023.0","Cálculo, exame químico "]
["396.4","Carbamazepina, s "]
["1024.8","Catecolaminas, frações (adrenalina, noradrenalina, dopamina), s"]
["663.7","Catecolaminas, total, u "]
["1026.4","Chumbo, s/u"]
["919.9","Cloretos, estimulação por pilocarpina, suor "]
["1027.2","Cloretos, s/u/l "]
["408.1","Cobre, doseamento químico "]
["412.0","Colesterol da fração HDL, s "]
["542.8","Colesterol da fração LDL, s "]
["1029.9","Colesterol total, s/l "]
["1315.8","Cortisol livre, u"]
["1032.9","Cortisol, s"]
["423.5","Creatinaquinase (CK), s "]
["428.6","Creatinina, prova de depuração "]
["427.8","Creatinina, s/u "]
["670.0","Delta4-androstenediona, s "]
["1036.1","Desidrogenase láctica (LDH), s/u/l "]
["668.8","DHEA, Dehidroepiandrosterona, s/u/l "]
["669.6","DHEA-S, Dehidroepiandrosterona sulfato, s/l "]
["462.6","Digoxina, s "]
["1038.8","Drogas de abuso, pesquisa, cada, s/u"]
["1039.6","Drogas terapêuticas, outras, doseamento, cada, s"]
["606.8","Enzima de conversão da Angiotensina (ECA), s/l"]
["673.4","Eritropoietina, s "]
["1041.8","Estradiol (17ß), E2, s "]
["533.9","Fenitoína, s "]
["483.9","Ferritina, s "]
["486.3","Ferro, capacidade de fixação, s "]
["484.7","Ferro, s "]
["329.8","Folatos, s"]
["491.0","Fosfatase ácida total, s "]
["1045.0","Fosfatase ácida, fração prostática (PAP), (mét. imunológico), s"]
["493.6","Fosfatase alcalina, s "]
["499.5","Fosfato, s/u "]
["507.0","Gamaglutamil transferase (γGT)"]
["1523.1","Gasimetria (pH, pCO2, pO2, SatO2, CO2, ...), s "]
["1270.4","Glucose, doseamento, s/u/l "]
["1049.3","Gonadotrofina coriónica (HCG), s "]
["526.6","Gonadotrofina coriónica (teste imunológico de gravidez), u "]
["525.8","Grau de digestão de alimentos, fezes "]
["1317.4","Haptoglobina, s"]
["531.2","Hemoglobina A1c (glicada)"]
["529.0","Hemoglobina, pesquisa, u "]
["1051.5","Hormona adrenocorticotrópica (ACTH), s "]
["730.7","Hormona antidiurética (ADH), s "]
["716.1","Hormona do crescimento (HGH), s "]
["681.5","Hormona folículo-estimulante (FSH), s "]
["686.6","Hormona luteínica (LH), s "]
["692.0","Hormona paratiroideia (PTH), s "]
["1053.1","Hormona tirostimulante (TSH), s "]
["688.2","Insulina, s "]
["535.5","Ionograma (Na, K, Cl), s/u"]
["333.6","Lactato (ácido láctico), s/l "]
["547.9","Lipase, s/u "]
["1055.8","Lipoproteínas (eletroforese), s "]
["1042.6","Líquido seminal, estudo morfológico"]
["552.5","Lítio, s "]
["553.3","Magnésio, s/u "]
["557.6","Mercúrio, doseamento, s/u "]
["690.4","Metanefrinas (total), s/u "]
["672.6","Metanefrinas fraccionadas, s/u "]
["106.6","Mioglobina, s/u "]
["572.0","Osmolalidade, s/u/l "]
["577.0","Peptídeo C, s/u "]
["631.9","Porfirinas, doseamento, u"]
["589.4","Porfobilinogénio, doseamento, s/u/fezes "]
["591.6","Potássio, s/u "]
["696.3","Progesterona (PRG), s "]
["697.1","Prolactina (PRL), s "]
["292.5","Proteína C reativa Ultra sensível, s"]
["291.7","Proteína C reativa, s"]
["715.3","Proteína de transporte das hormonas sexuais (SHBG), s "]
["470.7","Proteínas (total) e eletroforese, s "]
["471.5","Proteínas (total) e electroforese após concentração, u/l "]
["596.7","Proteínas (total), s/u/l "]
["639.4","Prova de D - Xilose, s/u "]
["703.0","Prova de sobrecarga glucídica, cada doseamento de glucose e de HGH "]
["710.2","Prova de tolerância à glucose, doseamentos de insulina e glucose, cada doseamento"]
["1048.5","Prova tolerância à glucose, cada doseamento "]
["713.7","Renina, s "]
["607.6","Sangue oculto nas fezes, fezes"]
["616.5","Sódio, s/u "]
["729.3","Somatomedina C (IGF1)"]
["368.9","Teofilina/aminofilina, s "]
["725.0","Testosterona livre, s "]
["724.2","Testosterona total, s "]
["727.7","Tiroglobulina, s "]
["721.8","Tiroxina livre (FT4), s "]
["720.0","Tiroxina total (T4), s "]
["619.0","Transferrina, s"]
["620.3","Triglicéridos, s/u/l "]
["718.8","Triiodotironina livre (FT3), s "]
["717.0","Triiodotironina total (T3), s "]
["Novo","Troponina T, I, s, cada"]
["625.4","Ureia, s/u "]
["1064.7","Urina, análise quantitativa do sedimento (contagem por minuto) "]
["627.0","Urina, análise sumária (inclui análise do sedimento)"]
["339.5","Valproato, s "]
["634.3","Vitamina B12 (cianocobalamina)"]
["1302.6","Vitamina D (calcifediol, calciferol e outras), cada, s"]
["1083.3","Coloração naftil AS-D acetato esterase (NASDA) sem fluor, s/medula"]
["757.9","Eosinófilos, pesquisa, exsudados nasais/u"]
["1077.9","Fragilidade osmótica dos eritrócitos, após incubação, s "]
["1076.0","Fragilidade osmótica dos eritrócitos, imediata, s "]
["1079.5","Glucose-6-fosfato-desidrogenase (G6PD), eritrócitos, doseamento, s "]
["084.1","Hemoglobina A2, doseamento, (Microcolunas),s"]
["085.0","Hemoglobina F, doseamento, outros métodos, s "]
["090.6","Hemoglobinas anormais (S ou outras), doseamento, s"]
["037.0","Hemoglobinas, eletroforese, (pH alcalino), s"]
["1303.4","Hemoglobinas, separação e doseamento (Cromatografia LPLC/HPLC), s "]
["1080.9","Hemograma com fórmula leucocitária (eritrograma, contagem de leucócitos, contagem de plaquetas, fórmula leucocitária e morfologia), s"]
["133.3","Reticulócitos, s"]
["025.6","Teste de falciformação, s"]
["161.9","Velocidade de sedimentação, s"]
["016.7","Anticoagulante tipo lúpico, pesquisa (a pesquisa inclui a realização de dois testes com duas metodologias diferentes)"]
["1067.1","Antitrombina: funcional, s"]
["1304.2","Dímeros-D (DD), s"]
["1070.1","Fator de von Willebrand: Ag (antigénico), s"]
["1073.6","Fibrinogénio: funcional (método de Clauss), s"]
["052.3","FIX: C, s"]
["049.3","FVIII: C, s"]
["965.2","Proteína C: funcional, s"]
["1081.7","Proteína S livre: Ag (antigénico), s"]
["1082.5","Proteína S: funcional, s"]
["1086.8","Tempo de protrombina (TP, Quick, INR)"]
["1087.6","Tempo de tromboplastina parcial activado (APTT) (tempo de cefalina-activador), s"]
["1097.3","Anticorpos anti-ADN nativo (dsDNA)"]
["180.5","Anticorpos anti-células parietais gástricas (APCA)"]
["1093.0","Anticorpos anti-citoplasma do neutrófilo (ANCA), (imunofluorescência)"]
["185.6","Anticorpos anti-ilhéus pancreáticos (ICA)"]
["188.0","Anticorpos anti-mitocôndrias (AMA) (imunofluorescência) "]
["190.2","Anticorpos anti-músculo liso (ASMA), (imunofluorescência)"]
["191.0","Anticorpos anti-nucleares e citoplasmáticos (ANA) (imunofluorescência) "]
["182.1","Anticorpos anti-nucleares e citoplasmáticos (anti-Sm, RNP, SSA/Ro52, SSA/Ro60, SSB/La, Jo1, Scl70), identificação, todos "]
["1305.0","Anticorpos anti-peptídeos citrulinados (CCP)"]
["1104.0","Anticorpos anti-tiroideus, peroxidase (TPO)"]
["1103.1","Anticorpos anti-tiroideus, tiroglobulina (TG)"]
["1310.7","Anticorpos anti-transglutaminase, cada isotipo"]
["295.0","Anticorpos IgE específicos para antigénios isolados (inalantes, alimentares ou outros), cada antigénio"]
["1107.4","Anticorpos IgE específicos para misturas de antigénios (inalantes, alimentares ou outros), cada mistura"]
["357.3","Antitripsina alfa 1"]
["1109.0","Caracterização de componentes monoclonais (imunofixação / imunosubtração)"]
["1110.4","Caracterização de componentes monoclonais (imunofixação), após concentração"]
["398.0","Ceruloplasmina"]
["1106.6","Complemento (C3)"]
["221.6","Complemento (C4)"]
["1114.7","Complemento, atividade hemolítica via clássica (CH50)"]
["229.1","Crioglobulinas, caracterização"]
["296.8","Fator reumatóide (nefelometria / turbidimetria) "]
["251.8","Imunoglobulina A (IgA)"]
["257.7","Imunoglobulina E"]
["252.6","Imunoglobulina G (IgG)"]
["253.4","Imunoglobulina M (IgM)"]
["1306.9","Imunoglobulinas (A/G/M), baixa concentração, cada "]
["1111.2","Inibidor da esterase C'1"]
["1116.3","Anticorpos anti-linfócito ou anti-neutrófilo ou anti-plaqueta, pesquisa em células, cada isotipo, citometria de fluxo"]
["1117.1","Anticorpos anti-linfócito ou anti-neutrófilo ou anti-plaqueta, pesquisa em soro, cada isotipo, citometria de fluxo"]
["1307.7","Doenças linfoproliferativas B, quantificação e caracterização do perfil fenotípico dos linfócitos B, estudo inicial, citometria de fluxo"]
["1112.0","HLA B27, avaliação da expressão, citometria de fluxo"]
["1240.2","Anticorpos para agente infeccioso IgA - inclui titulação"]
["1125.2","Anticorpos para agente infeccioso IgG - inclui titulação"]
["1126.0","Anticorpos para agente infeccioso IgM - inclui titulação"]
["1135.0","Anticorpos para CMV - teste de avidez"]
["1133.3","Anticorpos para CMV IgG"]
["1134.1","Anticorpos para CMV IgM"]
["1159.7","Anticorpos para Rickettsia conorii – IgG"]
["1160.0","Anticorpos para Rickettsia conorii – IgM"]
["1161.9","Anticorpos para Rubéola – IgG"]
["1162.7","Anticorpos para Rubéola – IgM"]
["1261.5","Anticorpos para Rubéola – teste de avidez"]
["1164.3","Anticorpos para Toxoplasma gondii - IgG"]
["1165.1","Anticorpos para Toxoplasma gondii – IgM"]
["1163.5","Anticorpos para Toxoplasma gondii – teste de avidez"]
["874.5","Anticorpos para Treponema pallidum (TPHA)"]
["837.0","Anticorpos para Treponema pallidum, FTA-ABs (I.F.) "]
["1308.5","Anticorpos para VIH 1 e 2 (inclui confirmação)"]
["1122.8","Anticorpos para vírus Hepatite A IgG "]
["1123.6","Anticorpos para vírus Hepatite A IgM "]
["1120.1","Anticorpos para vírus Hepatite B - anti HBc IgG ou total "]
["811.7","Anticorpos para vírus Hepatite B - anti HBc IgM"]
["1121.0","Anticorpos para vírus Hepatite B - anti Hbe"]
["1124.4","Anticorpos para vírus Hepatite B - anti Hbs"]
["1271.2","Anticorpos para vírus Hepatite C - anti HCV"]
["1272.0","Anticorpos para vírus Hepatite C - anti HCV confirmatório "]
["1273.9","Anticorpos para vírus Hepatite C - anti HCV IgM"]
["1129.5","Mononucleose infecciosa (teste rápido)"]
["753.6","Reação de Rosa Bengala"]
["875.3","Reação de VDRL com titulação"]
["879.6","Reação de Widal-Felix"]
["1146.5","Reação de Wright/Huddleson"]
["871.0","RPR (Rapid Plasma Reagin)"]
["853.2","Título de anti-estreptolisina O "]
["1132.5","Antigénio de Rotavírus nas fezes"]
["856.7","Antigénio de vírus da Hepatite B - Hbe"]
["1130.9","Antigénio de vírus da Hepatite B - Hbs"]
["1321.2","Amostras respiratórias (expetoração, aspirado endotraqueal e aspirado brônquico) - exame direto - Gram - e exame cultural, identificação e TSA"]
["1322.0","Amostras respiratórias (lavado bronco-alveolar, escovado brônquico) - exame direto - Gram - e exame cultural (qualitativo e quantitativo), identificação e TSA"]
["1199.6","Exsudado auricular - exame cultural, identificação e TSA"]
["1323.9","Exsudado conjuntival - exame cultural, identificação e TSA "]
["1204.6","Exsudado endocervical - pesquisa de Neisseria gonorrhoeae, exame cultural, identificação e TSA "]
["1309.3","Exsudado endocervical/uretral - pesquisa de Mycoplasmas genitais, exame cultural, identificação e TSA"]
["746.3","Exsudado faríngeo - pesquisa de Corynebacterium diphtheriae, exame cultural e identificação"]
["1201.1","Exsudado faríngeo - pesquisa de Neisseria gonorrhoeae, exame cultural, identificação e TSA"]
["1213.5","Exsudado faríngeo - pesquisa Streptococcus beta-hemolíticos, exame cultural e identificação"]
["1263.1","Exsudado nasofaríngeo - pesquisa de Neisseria meningitidis, exame cultural"]
["1326.3","Exsudado purulento (colheita por aspiração) - exame direto, cultural em aerobiose, identificação e TSA "]
["1254.2","Exsudado purulento superficial - exame cultural, identificação e TSA"]
["1212.7","Exsudado uretral - exame bacteriológico, micológico e parasitológico, identificação e TSA "]
["1211.9","Exsudado vaginal - exame bacteriológico, micológico e parasitológico, identificação e TSA"]
["756.0","Fezes - pesquisa de Salmonella, Shigella e Campylobacter, exame cultural, identificação e TSA "]
["1223.2","Hemocultura / Mielocultura - em aerobiose, identificação e TSA"]
["1325.5","Humor vítreo/ Humor aquoso - exame direto e cultural para bactérias aeróbias, anaerobios, identificação e TSA"]
["1222.4","Líquidos de cavidades naturais - exame direto, cultural, identificação e TSA "]
["1324.7","Raspados da córnea - exame direto e cultural , identificação e TSA"]
["1214.3","Streptococcus do grupo B - deteção em exsudado vaginal/rectal em grávidas"]
["1265.8","Urina - exame direto, cultural, identificação e TSA (Urocultura)"]
["1226.7","Amostras respiratórias para pesquisa de Micobactérias - exame direto e cultural em meios sólidos"]
["1138.4","Micobactérias - exame direto (procedimento isolado)"]
["772.2","Fungos - pesquisa em exame direto, procedimento isolado"]
["1139.2","Fungos leveduriformes - exame micológico cultural"]
["1140.6","Fungos não leveduriformes - exame micológico cultural"]
["773.0","Exame parasitológico direto, com concentração"]
["1169.4","Anticorpos irregulares, anti-eritrocitários, pesquisa em meio de antiglobulina humana (em doentes)"]
["032.9","Crioaglutininas, pesquisa"]
["1300.0","D fraco, pesquisa"]
["062.0","Fenotipagem eritrocitária Rh"]
["027.2","Teste de anti-globulina humana direto (Coombs direto)"]
["079.5","Tipagem AB0 e Rh (D)"]

{"sheet":"EXAMES_B","index":10,"n_rows":14,"n_cols":2,"rows_kept":14,"cut":false,"hidden":true,"merged":[]}
["codigoExameB","DesignacaoExameB"]
["008.6","Exame citológico cervico-vaginal"]
["009.4","Exame de citologia esfoliativa não cervico-vaginal"]
["010.8","Aspiração com agulha fina guiada por palpação com preparação de esfregaços e exame citológico do produto obtido"]
["011.6","Processamento e exame citológico de aspirado de agulha fina "]
["012.4","Exame citológico cervico-vaginal com processamento automatizado em camada fina"]
["013.2","Exame citológico não cervico-vaginal, com processamento automatizado em camada fina"]
["014.0","Exame histológico, fragmentos de biópsia com processamento rápido"]
["015.9","Exame macroscópico e histológico de produto de biópsia incisional ou excisional, raspagem, curetagem ou de eliminação espontânea "]
["016.7","Exame macroscópico e histológico de peça de ressecção cirúrgica ou de feto com 11 semanas ou menos "]
["017.5","Exame macroscópico e histológico de peça de ressecção cirúrgica com dissecção ganglionar e/ou avaliação da margem circunferencial e/ou mapeamento "]
["005.1","Exame extemporâneo"]
["007.8","Imunocito(histo)química, cada anticorpo"]
["006.0","Exame por microscopia eletrónica"]

{"sheet":"EXAMES_C","index":11,"n_rows":6,"n_cols":2,"rows_kept":6,"cut":false,"hidden":true,"merged":[]}
["codigoExameB","DesignacaoExameB"]
["002.7","ECG simples de 12 derivações "]
["003.5","Prova de esforço em bicicleta ergométrica ou em tapete rolante com monitorização eletrocardiográfica contínua, registo de ECG em cada estadio"]
["006.0","Registo de Holter até 24 horas com análise interativa do perfil rítmico e do segmento ST, podendo incluir variabilidade da frequência cardíaca"]
["1530.4","Ecocardiograma transtorácico bidimensional ( (também na área Radiologia)"]
["025.6","Análise electrónica e programação de sistema pacemaker permanente"]

{"sheet":"EXAMES_D","index":12,"n_rows":20,"n_cols":2,"rows_kept":20,"cut":false,"hidden":true,"merged":[]}
["codigoExameD","DesignacaoExameD"]
["039.6","Cintigrafia miocárdica de perfusão em esforço/stress farmacológico"]
["040.0","Cintigrafia miocárdica de perfusão em repouso"]
["018.3","Tomografia cerebral com 99mTc-HMPAO"]
["025.6","Pesquisa de hemorragia digestiva"]
["005.1","Cintigrafia das glândulas salivares"]
["006.0","Cintigrafia hepatobiliar"]
["007.8","Cintigrafia hepatobiliar com estimulação vesicular"]
["033.7","Cintigrafia hepática com glóbulos vermelhos marcados "]
["024.8","Pesquisa de divertículo Meckel"]
["009.4","Cintigrafia óssea corpo inteiro"]
["011.6","Cintigrafia pulmonar de perfusão"]
["012.4","Cintigrafia da tiroideia "]
["027.2","Renograma"]
["028.0","Intervenção farmacológica - prova diurética (acresce ao Renograma)"]
["029.9","Intervenção farmacológica - prova de captopril (acresce ao Renograma)"]
["1500.2","Osteodensitometria da coluna lombar (também na área de Medicina Nuclear)"]
["1501.0","Osteodensitometria do colo femoral (também na área de Medicina Nuclear)"]
["1502.9","Osteodensitometria do punho (também na área de Medicina Nuclear)"]
["1503.7","Osteodensitometria da coluna lombar e do colo femoral (também na área de Medicina Nuclear)"]

{"sheet":"EXAMES_E","index":13,"n_rows":5,"n_cols":2,"rows_kept":5,"cut":false,"hidden":true,"merged":[]}
["codigoExameE","DesignacaoExameE"]
["019.1","EEG de rotina (inclui canal de ECG, prova de Hiperpneia e ELI)"]
["005.1","EEG de rotina, fora do laboratório"]
["022.1","Cartografia de EEG (adicional ao registo)"]
["002.7","EEG de rotina com prova de Sono"]

{"sheet":"EXAMES_F","index":14,"n_rows":16,"n_cols":2,"rows_kept":16,"cut":false,"hidden":true,"merged":[]}
["codigoExameF","DesignacaoExameF"]
["030.2","Biopsias transendoscópicas (acresce ao valor da endoscopia)"]
["028.0","Polipectomia, por sessão (a adicionar ao exame endoscópico)"]
["009.4","Anuscopia"]
["100.7","Colonoscopia, pacote de procedimentos "]
["101.5","Colonoscopia total"]
["102.3","Colonoscopia esquerda"]
["104.0","Biopsias transendoscópicas"]
["105.8","Polipectomia, por sessão"]
["106.6","Aplicação de \"clips\" (cada sessão) "]
["107.4","Injecção endoscópica de fármacos"]
["108.2","Tatuagem cólica"]
["109.0","Sedar/analgesiar (sedação superficial ou profunda)"]
["002.7","Endoscopia alta "]
["008.6","Rectoscopia rígida "]
["007.8","Rectosigmoidoscopia flexível"]

{"sheet":"EXAMES_G","index":15,"n_rows":75,"n_cols":2,"rows_kept":75,"cut":false,"hidden":true,"merged":[]}
["codigoExameG","DesignacaoExameG"]
["002.7","Primeira Consulta em Medicina Física e de Reabilitação"]
["003.5","Consulta Subsequente em Medicina Física e de Reabilitação"]
["004.3","Consulta de Avaliação Final em Medicina Física e de Reabilitação"]
["1535.5","Estudo da marcha com plataforma elétrica e registo"]
["201.1","Exame muscular com registo gráfico"]
["202.0","Goniometria elétrica"]
["011.6","Raquimetria"]
["028.0","Iontoforese"]
["026.4","Corrente continua"]
["204.6","Corrente de baixa frequência"]
["205.4","Corrente de média frequência"]
["029.9","Corrente de alta frequência (micro-ondas)"]
["030.2","Corrente de alta frequência (ondas curtas)"]
["023.0","Estimulação elétrica neuro-muscular, por grupo muscular"]
["034.5","Magnetoterapia"]
["206.2","Ultrassonoterapia"]
["040.0","Radiações infravermelhas"]
["041.8","Radiações ultravioletas"]
["047.7","Crioterapia"]
["045.0","Terapia por calor húmido"]
["049.3","Parafinoterapia"]
["048.5","Parafangoterapia"]
["056.6","Hidrocinesiterapia individual em piscina"]
["061.2","Hidrocinesiterapia coletiva em piscina"]
["057.4","Hidromassagem"]
["073.6","Banho de contraste"]
["077.9","Banho de turbilhão"]
["208.9","Banhos especiais"]
["209.7","Duches"]
["062.0","Hidrocinesiterapia individual em tanque"]
["063.9","Treino em tanque de marcha"]
["108.2","Massagem manual de uma região"]
["107.4","Massagem manual de mais de uma região"]
["059.0","Massagem subaquática"]
["211.9","Vibromassagem"]
["1528.2","Cinesiterapia respiratória "]
["102.3","Cinesiterapia vertebral"]
["099.0","Cinesiterapia corretiva postural"]
["100.7","Cinesiterapia pré e pós parto, em grupo"]
["213.5","Fortalecimento muscular manual"]
["109.0","Mobilização articular manual"]
["113.9","Técnicas especiais de Cinesiterapia"]
["114.7","Treino de equilíbrio e marcha"]
["110.4","Cinesiterapia em grupo"]
["111.2","Reeducação funcional de cada membro"]
["103.1","Drenagem postural"]
["1524.0","Aerossóis"]
["1525.8","Aerossóis ultra-sónicos"]
["1526.6","Mobilização de secreções com flutter "]
["1537.1","Oxigenoterapia"]
["122.8","Tração vertebral mecânica"]
["120.1","Tração vertebral motorizada"]
["125.2","Pressões intermitentes"]
["222.4","Pressões intermitentes sequenciais"]
["218.6","Fortalecimento muscular/ mobilização articular"]
["220.8","Treino de utilização de prótese do membro inferior"]
["221.6","Treino de utilização de prótese do membro superior"]
["115.5","Treino de utilização de ortótese"]
["130.9","Treino em atividades de vida diária"]
["1518.5","Terapia da fala"]
["1519.3","Qualquer dos códigos de terapia da fala quando em grupo"]
["131.7","Terapia ocupacional"]
["106.6","Manipulação"]
["1504.5","Espirometria, incluindo curva débito volume"]
["1505.3","Capacidade residual funcional ou volume residual (hélio/azoto)"]
["1506.1","Pletismografia corporal: estudo da resistência das vias aéreas e volume de gás intratorácico"]
["1507.0","Prova de broncodilatação (acresce à prova basal)"]
["1508.8","Prova de broncoconstrição com água destilada/soluto hipertónico (acresce à prova basal) "]
["1510.0","Prova de broncoconstrição de esforço, com bicicleta ou tapete rolante (acresce à prova basal)"]
["1512.6","Prova de broncoconstrição com metacolina (acresce à prova basal)"]
["1513.4","Prova de broncoconstrição específica com alergénios (acresce à prova basal)"]
["1514.2","Capacidade de difusão do CO por respiração única"]
["1515.0","Capacidade de difusão do CO por equilíbrio estável"]
["1517.7","Prova de exercício com avaliação de parâmetros cardio-respiratórios em tapete rolante ou bicicleta ergonómica"]

{"sheet":"EXAMES_H","index":16,"n_rows":44,"n_cols":2,"rows_kept":44,"cut":false,"hidden":true,"merged":[]}
["codigoExameH","DesignacaoExameH"]
["001.9","Audiograma tonal simples"]
["004.3","Audiograma vocal"]
["137.6","Acufenometria"]
["103.1","Audiometria tonal até 5 anos de idade"]
["104.0","Audiometria vocal até 10 anos de idade"]
["012.4","Timpanograma"]
["013.2","Pesquisa de reflexos acústicos ipsi-laterais ou contra-laterais"]
["014.0","Pesquisa do \"Decay\" do reflexo bilateral"]
["015.9","Pesquisa de reflexos não acústicos"]
["017.5","Estudo timpanométrico do funcionamento da trompa auditiva"]
["019.1","Estudo impedanciométrico completo "]
["030.2","Eletrococleografia (Ecog)"]
["031.0","Respostas de tronco cerebral (PEA)"]
["032.9","Respostas semi-precoces"]
["064.7","Testes calóricos vestibulares"]
["062.0","Exame vestibular completo por ENG ou VNG computorizada (inclui nistagmo espontâneo e posicional, provas calóricas, optocinéticas, rotatórias e de perseguição)"]
["097.3","Endoscopia nasal"]
["098.1","Sinusoscopia"]
["099.0","Nasofaringolaringoscopia"]
["090.6","Estroboscopia (inclui laringoscopia)"]
["051.5","Análise computorizada da voz"]
["126.0","Rinometria computorizada"]
["127.9","Rinometria computorizada com provas de provocação nasal"]
["128.7","Eletroneuronografia computorizada (três avaliações sucessivas)"]
["070.1","Eletrogustometria"]
["081.7","Exames/actos realizados sob anestesia geral"]
["130.9","Biópsia ganglionar"]
["131.7","Biópsia com pinça ou agulha, gengival"]
["132.5","Biópsia de tecidos moles"]
["133.3","Biópsia com pinça ou agulha, orofaringe"]
["134.1","Biópsia com pinça ou agulha, nasofaringe"]
["135.0","Biópsia com pinça ou agulha, laringe"]
["136.8","Biópsia com pinça ou agulha, nariz"]
["100.7","Microcirurgia laríngea convencional (lesões congénitas e lesões minor da laringe)"]
["1518.5","Terapia da fala"]
["1519.3","Qualquer dos códigos de terapia da fala quando em grupo"]
["1520.7","Testes por picada (Prick) - reação de hipersensibilidade imediata, com um mínimo de 15 extratos alergénicos, incluindo controlo positivo e diluente"]
["1521.5","Testes por picada (Prick) - reação de hipersensibilidade imediata, desdobramento de alergenos. Cada série de 10 alergenos, incluindo controlo positivo e diluente"]
["1522.3","Testes por picada (Prick) - reação de hipersensibilidade imediata, método Prick-Prick, alimentos frescos, incluindo controlo positivo e diluente "]
["1535.5","Estudo da marcha com plataforma elétrica e registo"]
["1538.0","Estudo electromiográfico dos membros superiores ou dos membros inferiores ou de um território específico (inclui estimulação repetitiva), no laboratório"]
["1539.8","Estudo electromiográfico dos membros superiores e dos membros inferiores, no laboratório"]
["1540.1","Potenciais de longa latência (P 300 ou outros)"]

{"sheet":"EXAMES_I","index":17,"n_rows":56,"n_cols":2,"rows_kept":56,"cut":false,"hidden":true,"merged":[]}
["codigoExameI","DesignacaoExameI"]
["1504.5","Espirometria, incluindo curva débito volume"]
["1505.3","Capacidade residual funcional ou volume residual (hélio/azoto)"]
["1506.1","Pletismografia corporal: estudo da resistência das vias aéreas e volume de gás intratorácico"]
["1507.0","Prova de broncodilatação (acresce à prova basal)"]
["1508.8","Prova de broncoconstrição com água destilada/soluto hipertónico (acresce à prova basal) "]
["1510.0","Prova de broncoconstrição de esforço, com bicicleta ou tapete rolante (acresce à prova basal)"]
["1512.6","Prova de broncoconstrição com metacolina (acresce à prova basal)"]
["1513.4","Prova de broncoconstrição específica com alergénios (acresce à prova basal)"]
["1514.2","Capacidade de difusão do CO por respiração única"]
["1515.0","Capacidade de difusão do CO por equilíbrio estável"]
["1517.7","Prova de exercício com avaliação de parâmetros cardio-respiratórios em tapete rolante ou bicicleta ergonómica"]
["168.6","Ventilação com pressão positiva contínua (CPAP), por cada dia (inclui oximetria) "]
["169.4","Ventilação com pressão positiva contínua (Binível ou outra modalidade), por cada dia (inclui oximetria)"]
["170.8","Adaptação e aferição a ventilação com pressão positiva contínua (CPAP) (incluí oximetria e gasimetria) "]
["171.6","Adaptação e aferição a ventilação com pressão positiva contínua (Binível ou outra modalidade) (incluí oximetria e gasimetria) "]
["154.6","Broncoscopia rígida "]
["155.4","Broncofibroscopia"]
["156.2","Vídeobroncofibroscopia"]
["043.8","Toracoscopia"]
["044.2","Mediastinoscopia cervical"]
["160.0","Biópsia pulmonar transbrônquica"]
["161.9","Biópsia pulmonar por toracoscopia"]
["162.7","Biópsia por punção - tru-cut (acresce apoio de fluoroscopia, ecografia, tomografia - ver tabela de Radiologia)"]
["164.3","Biópsia pleural por toracoscopia"]
["165.1","Biópsia endoscópica (acresce ao valor da endoscopia)"]
["011.6","Extração de corpo estranho"]
["149.0","Terapêutica com LASER"]
["150.3","Terapêutica com electrocautério"]
["166.0","Toracocentese diagnóstica"]
["167.8","Toracocentese evacuadora"]
["101.5","Toracostomia com drenagem subaquática"]
["163.5","Biópsia pleural (acresce a Toracocentese)"]
["008.6","Lavagem pleural "]
["1520.7","Testes por picada (Prick) - reação de hipersensibilidade imediata, com um mínimo de 15 extratos alergénicos, incluindo controlo positivo e diluente"]
["1521.5","Testes por picada (Prick) - reação de hipersensibilidade imediata, desdobramento de alergenos. Cada série de 10 alergenos, incluindo controlo positivo e diluente"]
["1522.3","Testes por picada (Prick) - reação de hipersensibilidade imediata, método Prick-Prick, alimentos frescos, incluindo controlo positivo e diluente "]
["704.8","Testes por picada (Prick) - reação de hipersensibilidade imediata, venenos"]
["705.6","Testes por picada (Prick) - reação de hipersensibilidade imediata, frações alergénicas de medicamentos"]
["706.4","Testes por picada (Prick) - reação de hipersensibilidade imediata, produtos biológicos ou outros medicamentos, incluindo controlo positivo e diluente "]
["707.2","Testes intradérmicos - reação de hipersensibilidade imediata a venenos"]
["708.0","Testes intradérmicos - reação de hipersensibilidade imediata, a frações alergénicas de medicamentos"]
["709.9","Testes intradérmicos - reação de hipersensibilidade imediata, outros medicamentos e produtos biológicos incluindo controlo positivo e diluente"]
["710.2","Testes intradérmicos - reação de hipersensibilidade imediata, com extratos alergénicos, cada série de 8 alergenos incluindo controlo positivo e diluente "]
["711.0","Testes de provocação oftálmica - cada alergeno"]
["713.7","Aplicação de uma injeção de extratos alergénicos - monitorização e vigilância"]
["714.5","Aplicação de duas ou mais injeções de extratos alergénicos "]
["715.3","Aplicação de uma injeção de veneno de himenóptero"]
["716.1","Aplicação de duas injeções de veneno de himenóptero"]
["717.0","Aplicação de extratos de aeroalergenos por método de \"rush\" - mínimo de 4 injeções em concentrações crescentes"]
["718.8","Dessensibilização rápida a medicamentos - cada hora"]
["1524.0","Aerossóis"]
["1525.8","Aerossóis ultra-sónicos"]
["1526.6","Mobilização de secreções com flutter "]
["1537.1","Oxigenoterapia"]
["1528.2","Cinesiterapia respiratória "]

{"sheet":"EXAMES_J","index":18,"n_rows":9,"n_cols":2,"rows_kept":9,"cut":false,"hidden":true,"merged":[]}
["codigoExameJ","DesignacaoExameJ"]
["1529.0","Colocação endoscópica retrógrada de tutor/cateter ureteral (unilateral)"]
["010.8","Uretrocistoscopia"]
["002.7","Cistometria"]
["003.5","Perfilometria uretral"]
["001.9","Urofluxometria"]
["1531.2","Ecografia renal e supra-renal"]
["1532.0","Ecografia prostática e das vesículas seminais, por via endocavitária"]
["1533.9","Ecografia escrotal"]

{"sheet":"EXAMES_L","index":19,"n_rows":11,"n_cols":2,"rows_kept":11,"cut":false,"hidden":true,"merged":[]}
["codigoExameL","DesignacaoExameL"]
["015.9","Potenciais evocados somatossensitivos, dos membros superiores e dos membros inferiores, no laboratório"]
["042.6","Potenciais evocados auditivos do tronco cerebral adultos"]
["043.4","Potenciais evocados auditivos em crianças"]
["044.2","Potenciais evocados visuais (\"flash\" ou padrão)"]
["045.0","Potenciais evocados visuais, em crianças"]
["1540.1","Potenciais de longa latência (P 300 ou outros)"]
["012.4","Potenciais evocados, com cartografia"]
["1538.0","Estudo electromiográfico dos membros superiores ou dos membros inferiores ou de um território específico (inclui estimulação repetitiva), no laboratório"]
["1539.8","Estudo electromiográfico dos membros superiores e dos membros inferiores, no laboratório"]
["007.8","Monitorização neurofisiológica intra-operatória, com electroencefalografia"]

{"sheet":"EXAMES_M","index":20,"n_rows":167,"n_cols":2,"rows_kept":167,"cut":false,"hidden":true,"merged":[]}
["codigoExameM","DesignacaoExameM"]
["700.5","Crânio, uma incidência"]
["084.1","Crânio, duas incidências"]
["109.0","Sela turca"]
["094.9","Mastóides, uma incidência"]
["401.4","Mastóides, duas incidências"]
["067.1","Buracos ópticos"]
["402.2","Órbita, duas incidências"]
["151.1","Globo ocular, deteção de corpo estranho"]
["701.3","Seios perinasais, uma incidência"]
["107.4","Seios perinasais, duas incidências"]
["407.3","Ossos da face, duas incidências"]
["408.1","Arcadas zigomáticas, uma incidência unilateral"]
["409.0","Arcadas zigomáticas, uma incidência bilateral simultânea"]
["099.0","Ossos próprios do nariz"]
["702.1","Articulações temporo-maxilares boca aberta e fechada, unilateral"]
["064.7","Articulações temporo-maxilares boca aberta e fechada bilateral"]
["092.2","Mandíbula, uma incidência"]
["411.1","Mandíbula, duas incidências"]
["166.0","Ortopantomografia"]
["146.5","Glândulas salivares para deteção de cálculos, uma incidência"]
["003.5","Cavum faríngeo, uma incidência"]
["022.1","Pescoço, partes moles, uma incidência"]
["023.0","Pescoço, partes moles, duas incidências"]
["413.8","Exames de cabeça e pescoço, cada incidência a mais"]
["414.6","Dacriocistografia"]
["415.4","Sialografia, cada glândula"]
["419.7","Charneira crânio-vertebral, duas incidências"]
["421.9","Coluna cervical, duas incidências"]
["422.7","Coluna cervical, quatro incidências"]
["423.5","Coluna cervical, inclinações laterais"]
["424.3","Coluna cervical, hiperflexão e hiperextensão"]
["073.6","Transição cervico-torácica, duas incidências"]
["075.2","Coluna dorsal, duas incidências"]
["076.0","Coluna lombar, duas incidências"]
["703.0","Coluna lombar, quatro incidências"]
["077.9","Charneira lombo-sagrada, duas incidências"]
["427.8","Coluna lombo-sagrada, inclinações laterais"]
["428.6","Coluna lombo-sagrada, hiperflexão e hiperextensão"]
["429.4","Coluna lombo-sagrada em carga, duas incidências"]
["065.5","Bacia"]
["730.7","Bacia em carga"]
["105.8","Articulações sacro-ilíacas, uma incidência unilateral"]
["106.6","Articulações sacro-ilíacas, uma incidência bilateral"]
["074.4","Sacro e cóccix, duas incidências"]
["731.5","Radiografia da Coluna, filme extralongo, uma incidência "]
["732.3","Radiografia da Coluna, filme extralongo, duas incidências"]
["435.9","Exames de coluna, cada incidência a mais"]
["030.2","Tórax, uma incidência"]
["031.0","Tórax, duas incidências"]
["706.4","Grelha costal, uma incidência"]
["081.7","Grelha costal, duas incidências"]
["707.2","Esterno, uma incidência"]
["088.4","Esterno, duas incidências"]
["089.2","Articulações esterno-claviculares, duas incidências"]
["445.6","Exames de tórax, cada incidência a mais (incidências complementares aos exames deste capítulo)"]
["446.4","Mamografia bilateral, duas incidências por mama"]
["447.2","Mamografia unilateral, duas incidências"]
["708.0","Mamografia, cada incidência a mais"]
["115.5","Galactografia"]
["001.9","Abdómen simples, uma incidência"]
["450.2","Abdómen simples, cada incidência mais"]
["011.6","Faringografia"]
["008.6","Trânsito esofágico"]
["009.4","Trânsito gastro-duodenal monocontraste (com ou sem pesquisa de hérnia do hiato)"]
["010.8","Trânsito gastro-duodenal duplo contraste (com ou sem pesquisa de hérnia do hiato)"]
["014.0","Trânsito do intestino delgado (por ingestão)"]
["015.9","Clister opaco"]
["017.5","Clister com duplo contraste"]
["040.0","Radiografia simples da pélvis"]
["055.8","Uretrocistografia ascendente com estudo pos-miccional (inclui contraste)"]
["070.1","Clavícula, uma incidência"]
["460.0","Clavícula, duas incidências"]
["461.8","Omoplata, duas incidências"]
["096.5","Ombro, uma incidência"]
["462.6","Ombro, duas incidências"]
["709.9","Articulação acromio-clavicular, cada incidência"]
["710.2","Articulação acromio-clavicular, bilateral"]
["066.3","Braço, duas incidências"]
["082.5","Cotovelo, duas incidências"]
["062.0","Antebraço, duas incidências"]
["103.1","Punho, duas incidências"]
["093.0","Mão, duas incidências"]
["465.0","Dedos da mão, duas incidências"]
["711.0","Membro superior de criança, mínimo duas incidências"]
["104.0","Idade óssea (mão e punho) "]
["467.7","Membros superiores, cada incidência a mais"]
["060.4","Anca unilateral, uma incidência"]
["061.2","Anca unilateral, duas incidências"]
["733.1","Anca unilateral em carga, uma incidência"]
["712.9","Anca bilateral, uma incidência"]
["713.7","Anca bilateral, duas incidências"]
["734.0","Anca bilateral em carga, uma incidência"]
["083.3","Coxa, duas incidências"]
["469.3","Joelho, duas incidências"]
["735.8","Radiografia dos joelhos em carga, duas incidências"]
["471.5","Estudo axial da rótula, uma incidência"]
["472.3","Estudo axial da rótula, três incidências"]
["102.3","Perna, duas incidências"]
["110.4","Tornozelo, duas incidências"]
["736.6","Tornozelo em carga, duas incidências"]
["100.7","Pé, duas incidências "]
["737.4","Pé em carga, duas incidências "]
["068.0","Calcâneo, duas incidências"]
["473.1","Dedos do pé, duas incidências "]
["715.3","Membros inferiores de criança, duas incidências"]
["738.2","Radiografia dos membros inferiores em filme extralongo "]
["156.2","Radiometria dos membros inferiores por segmentos articulares "]
["477.4","Membros inferiores, cada incidência a mais"]
["086.8","Esqueleto (criança)"]
["087.6","Esqueleto (adulto) (considera as seguintes incidências indicativas: crânio, coluna cervical, dorsal e lombar - duas incidências; bacia, braços, antebraços, mãos, fémures, pernas e pés - uma incidência)"]
["478.2","Artrografia do ombro"]
["739.0","Tomografia, cada plano"]
["748.0","Ecografia da tiróide"]
["274.7","Ecografia cervical (partes moles)"]
["289.5","Ecografia das glândulas salivares"]
["277.1","Ecografia mamária"]
["270.4","Ecografia do abdómen superior"]
["1531.2","Ecografia renal e supra-renal"]
["740.4","Ecografia ginecológica por via endocavitária (inclui avaliação pélvica via suprapúbica)"]
["1532.0","Ecografia prostática e das vesículas seminais, por via endocavitária"]
["282.8","Ecografia vesical via supra púbica"]
["487.1","Ecografia pélvica por via supra púbica"]
["1533.9","Ecografia escrotal"]
["490.1","Ecografia obstétrica 1º trimestre (idealmente realizada entre as 11 e as 13 semanas e seis dias)"]
["291.7","Ecografia obstétrica 2º trimestre, morfológica (idealmente realizada entre as 20 e as 22 semanas)"]
["492.8","Ecografia obstétrica 3º trimestre (idealmente realizada entre as 30 e as 32 semanas)"]
["285.2","Ecografia de partes moles"]
["356.5","Doppler dos vasos do pescoço"]
["357.3","Doppler das veias sub-clávias"]
["716.1","Doppler abdominal, cada víscera ou território vascular"]
["717.0","Doppler do sector arterial dos membros inferiores, cada membro"]
["718.8","Doppler do sector venoso dos membros inferiores, cada membro"]
["719.6","Doppler (adicional a qualquer dos exames de ecografia)"]
["1530.4","Ecocardiograma transtorácico bidimensional "]
["295.0","TC do crânio "]
["720.0","TC maxilo-facial "]
["721.8","TC do pescoço (partes moles)"]
["722.6","TC da sela turca "]
["296.8","TC das órbitas "]
["723.4","TC dos seios perinasais"]
["724.2","TC dos ouvidos "]
["725.0","TC da faringe "]
["741.2","TC da coluna cervical"]
["742.0","TC da coluna dorsal"]
["743.9","TC da coluna lombar"]
["744.7","TC da coluna sacro-coccígea"]
["745.5","TC da bacia"]
["301.8","TC do tórax "]
["598.3","TC do abdómen superior "]
["601.7","TC pélvica"]
["746.3","TC do membro superior (cada segmento anatómico)"]
["747.1","TC dos membros inferiores (cada segmento anatómico)"]
["519.3","TC, suplemento de contraste endovenoso"]
["520.7","TC, contraste oral"]
["521.5","TC, contraste rectal"]
["602.5","Biópsia percutânea guiada por técnica de imagem"]
["603.3","Punção aspirativa para citologia guiada por técnica de imagem "]
["596.7","Punção para citologia"]
["597.5","Punção para histologia"]
["1500.2","Osteodensitometria da coluna lombar"]
["1501.0","Osteodensitometria do colo femoral"]
["1502.9","Osteodensitometria do punho "]
["1503.7","Osteodensitometria da coluna lombar e do colo femoral "]
["727.7","Anestesiar sem qualquer fator de risco"]
["728.5","Anestesiar com 1 fator de risco"]
["729.3","Anestesiar com 2 ou mais fatores de risco"]

{"sheet":"EXAMES_N","index":21,"n_rows":109,"n_cols":2,"rows_kept":109,"cut":false,"hidden":true,"merged":[]}
["codigoExameN","DesignacaoExameN"]
["001.9","PRIMEIRA CONSULTA EM PSIQUIATRIA"]
["002.7","OUTRAS CONSULTAS EM PSIQUIATRIA"]
["003.5","PRIMEIRA CONSULTA EM CARDIOLOGIA"]
["004.3","OUTRAS CONSULTAS EM CARDIOLOGIA"]
["005.1","PRIMEIRA CONSULTA EM CARDIOLOGIA PEDIATRICA"]
["006.0","OUTRAS CONSULTAS EM CARDIOLOGIA PEDIATRICA"]
["007.8","PRIMEIRA CONSULTA EM CIRURGIA GERAL"]
["008.6","OUTRAS CONSULTAS EM CIRURGIA GERAL"]
["009.4","PRIMEIRA CONSULTA EM CIRURGIA PEDIATRICA"]
["010.8","OUTRAS CONSULTAS EM CIRURGIA PEDIATRICA"]
["011.6","PRIMEIRA CONSULTA EM CIRURGIA PLASTICA RECONSTRUTIVA"]
["012.4","OUTRAS CONSULTAS EM CIRURGIA PLASTICA RECONSTRUTIVA"]
["013.2","PRIMEIRA CONSULTA EM CIRURGIA TORACICA"]
["014.0","OUTRAS CONSULTAS EM CIRURGIA TORACICA"]
["015.9","PRIMEIRA CONSULTA EM CIRURGIA VASCULAR"]
["016.7","OUTRAS CONSULTAS EM CIRURGIA VASCULAR"]
["017.5","PRIMEIRA CONSULTA EM DERMATO-VENEREOLOGIA"]
["018.3","OUTRAS CONSULTAS EM DERMATO-VENEREOLOGIA"]
["019.1","PRIMEIRA CONSULTA EM ENDOCRINOLOGIA"]
["020.5","OUTRAS CONSULTAS EM ENDOCRINOLOGIA"]
["021.3","PRIMEIRA CONSULTA EM GASTRENTEROLOGIA"]
["022.1","OUTRAS CONSULTAS EM GASTRENTEROLOGIA"]
["023.0","PRIMEIRA CONSULTA EM GINECOLOGIA/OBSTRETRiCIA"]
["024.8","OUTRAS CONSULTAS EM GINECOLOGIA/OBSTRETRiCIA"]
["025.6","PRIMEIRA CONSULTA EM HEMATOLOGIA CLINICA"]
["026.4","OUTRAS CONSULTAS EM HEMATOLOGIA CLiNICA"]
["027.2","PRIMEIRA CONSULTA EM IMUNOALERGOLOGIA"]
["028.0","OUTRAS CONSULTAS EM IMUNOALERGOLOGIA"]
["031.0","PRIMEIRA CONSULTA EM MEDICINA INTERNA"]
["032.9","OUTRAS CONSULTAS EM MEDICINA INTERNA"]
["033.7","PRIMEIRA CONSULTA EM MEDICINA NUCLEAR"]
["034.5","OUTRAS CONSULTAS EM MEDICINA NUCLEAR"]
["035.3","PRIMEIRA CONSULTA EM NEFROLOGIA"]
["036.1","OUTRAS CONSULTAS EM NEFROLOGIA"]
["037.0","PRIMEIRA CONSULTA EM NEURO-CIRURGIA"]
["038.8","OUTRAS CONSULTAS EM NEURO-CIRURGIA"]
["039.6","PRIMEIRA CONSULTA EM NEUROLOGIA"]
["040.0","OUTRAS CONSULTAS EM NEUROLOGIA"]
["041.8","PRIMEIRA CONSULTA EM OFTALMOLOGIA"]
["042.6","OUTRAS CONSULTAS EM OFTALMOLOGIA"]
["043.4","PRIMEIRA CONSULTA EM ORTOPEDIA"]
["044.2","OUTRAS CONSULTAS EM ORTOPEDIA"]
["045.0","PRIMEIRA CONSULTA EM OTORRINOLARINGOLOGIA"]
["046.9","OUTRAS CONSULTAS EM OTORRINOLARINGOLOGIA"]
["047.7","PRIMEIRA CONSULTA EM PEDIATRIA"]
["048.5","OUTRAS CONSULTAS EM PEDIATRIA"]
["049.3","PRIMEIRA CONSULTA EM PEDOPSIQUIATRIA"]
["050.7","OUTRAS CONSULTAS EM PEDOPSIQUIATRIA"]
["051.5","PRIMEIRA CONSULTA EM PNEUMOLOGIA"]
["052.3","OUTRAS CONSULTAS EM PNEUMOLOGIA"]
["053.1","PRIMEIRA CONSULTA EM REUMATOLOGIA"]
["054.0","OUTRAS CONSULTAS EM REUMATOLOGIA"]
["055.8","PRIMEIRA CONSULTA EM UROLOGIA"]
["056.6","OUTRAS CONSULTAS EM UROLOGIA"]
["060.4","PRIMEIRA CONSULTA EM PSIQUIATRIA (I.P.S.S.)"]
["061.2","OUTRAS CONSULTAS EM PSIQUIATRIA (I.P.S.S.)"]
["062.0","PRIMEIRA CONSULTA EM CARDIOLOGIA (I.P.S.S.)"]
["063.9","OUTRAS CONSULTAS EM CARDIOLOGIA (I.P.S.S.)"]
["064.7","PRIMEIRA CONSULTA EM CARDIOLOGIA PEDIATRICA (I.P.S.S.)"]
["065.5","OUTRAS CONSULTAS EM CARDIOLOGIA PEDIATRICA (I.P.S.S.)"]
["066.3","PRIMEIRA CONSULTA EM CIRURGIA GERAL (I.P.S.S.)"]
["067.1","OUTRAS CONSULTAS EM CIRURGIA GERAL (I.P.S.S.)"]
["068.0","PRIMEIRA CONSULTA EM CIRURGIA PEDIATRICA (I.P.S.S.)"]
["069.8","OUTRAS CONSULTAS EM CIRURGIA PEDIATRICA (I.P.S.S.)"]
["070.1","PRIMEIRA CONSULTA EM CIRURGIA PLAST.RECONSTRUTIVA (I.P.S.S.)"]
["071.0","OUTRAS CONSULTAS EM CIRURGIA PLAST.RECONSTRUTIVA (I.P.S.S.)"]
["072.8","PRIMEIRA CONSULTA EM CIRURGIA TORACICA (I.P.S.S.)"]
["073.6","OUTRAS CONSULTAS EM CIRURGIA TORACICA (I.P.S.S.)"]
["074.4","PRIMEIRA CONSULTA EM CIRURGIA VASCULAR (I.P.S.S.)"]
["075.2","OUTRAS CONSULTAS EM CIRURGIA VASCULAR (I.P.S.S.)"]
["076.0","PRIMEIRA CONSULTA EM DERMATO-VENEREOLOGIA (I.P.S.S.)"]
["077.9","OUTRAS CONSULTAS EM DERMATO-VENEREOLOGIA (I.P.S.S.)"]
["078.7","PRIMEIRA CONSULTA EM ENDOCRINOLOGIA (I.P.S.S.)"]
["079.5","OUTRAS CONSULTAS EM ENDOCRINOLOGIA (I.P.S.S.)"]
["080.9","PRIMEIRA CONSULTA EM GASTRENTEROLOGIA (I.P.S.S.)"]
["081.7","OUTRAS CONSULTAS EM GASTRENTEROLOGIA (I.P.S.S.)"]
["082.5","PRIMEIRA CONSULTA EM GINECOLOGIA/OBSTETRICIA (I.P.S.S.)"]
["083.3","OUTRAS CONSULTAS EM GINECOLOGIA/OBSTETRICIA (I.P.S.S.)"]
["084.1","PRIMEIRA CONSULTA EM HEMATOLOGIA CLINICA (I.P.S.S.)"]
["085.0","OUTRAS CONSULTAS EM HEMATOLOGIA CLINICA (I.P.S.S.)"]
["086.8","PRIMEIRA CONSULTA EM IMUNOALERGOLOGIA (I.P.S.S.)"]
["087.6","OUTRAS CONSULTAS EM IMUNOALERGOLOGIA (I.P.S.S.)"]
["090.6","PRIMEIRA CONSULTA EM MEDICINA INTERNA (I.P.S.S.)"]
["091.4","OUTRAS CONSULTAS EM MEDICINA INTERNA (I.P.S.S.)"]
["092.2","PRIMEIRA CONSULTA EM MEDICINA NUCLEAR (I.P.S.S.)"]
["093.0","OUTRAS CONSULTAS EM MEDICINA NUCLEAR (I.P.S.S.)"]
["094.9","PRIMEIRA CONSULTA EM NEFROLOGIA (I.P.S.S.)"]
["095.7","OUTRAS CONSULTAS EM NEFROLOGIA (I.P.S.S.)"]
["096.5","PRIMEIRA CONSULTA EM NEURO-CIRURGIA (I.P.S.S.)"]
["097.3","OUTRAS CONSULTAS EM NEURO-CIRURGIA (I.P.S.S.)"]
["098.1","PRIMEIRA CONSULTA EM NEUROLOGIA (I.P.S.S.)"]
["099.0","OUTRAS CONSULTAS EM NEUROLOGIA (I.P.S.S.)"]
["100.7","PRIMEIRA CONSULTA EM OFTALMOLOGIA (I.P.S.S.)"]
["101.5","OUTRAS CONSULTAS EM OFTALMOLOGIA (I.P.S.S.)"]
["102.3","PRIMEIRA CONSULTA EM ORTOPEDIA (I.P.S.S.)"]
["103.1","OUTRAS CONSULTAS EM ORTOPEDIA (I.P.S.S.)"]
["104.0","PRIMEIRA CONSULTA EM OTORRINOLARINGOLOGIA (I.P.S.S.)"]
["105.8","OUTRAS CONSULTAS EM OTORRINOLARINGOLOGIA (I.P.S.S.)"]
["106.6","PRIMEIRA CONSULTA EM PEDIATRIA (I.P.S.S.)"]
["107.4","OUTRAS CONSULTAS EM PEDIATRIA (I.P.S.S.)"]
["108.2","PRIMEIRA CONSULTA EM PEDOPSIQUIATRIA (I.P.S.S.)"]
["109.0","OUTRAS CONSULTAS EM PEDOPSIQUIATRIA (I.P.S.S.)"]
["110.4","PRIMEIRA CONSULTA EM PNEUMOLOGIA (I.P.S.S.)"]
["111.2","OUTRAS CONSULTAS EM PNEUMOLOGIA (I.P.S.S.)"]
["112.0","PRIMEIRA CONSULTA EM REUMATOLOGIA (I.P.S.S.)"]
["113.9","OUTRAS CONSULTAS EM REUMATOLOGIA (I.P.S.S.)"]
["114.7","PRIMEIRA CONSULTA EM UROLOGIA (I.P.S.S.)"]
["115.5","OUTRAS CONSULTAS EM UROLOGIA (I.P.S.S.)"]

{"sheet":"EXAMES_O","index":22,"n_rows":5,"n_cols":2,"rows_kept":5,"cut":false,"hidden":true,"merged":[]}
["codigoExameO","DesignacaoExameO"]
["001.9","CONSULTAS"]
["002.7","TESTE WECHSLER"]
["003.5","TESTE RORSCHACH"]
["004.3","EXAME COMPLETO"]

{"sheet":"DISTRITOS","index":23,"n_rows":18,"n_cols":1,"rows_kept":18,"cut":false,"hidden":true,"merged":[]}
["Aveiro"]
["Beja"]
["Braga"]
["Bragança"]
["Castelo Branco"]
["Coimbra"]
["Évora"]
["Faro"]
["Guarda"]
["Leiria"]
["Lisboa"]
["Portalegre"]
["Porto"]
["Santarém"]
["Setúbal"]
["Viana do Castelo"]
["Vila Real"]
["Viseu"]

{"sheet":"CONCELHOS","index":24,"n_rows":25,"n_cols":18,"rows_kept":25,"cut":false,"hidden":true,"merged":[]}
["Aveiro","Beja","Braga","Bragança","Castelo Branco","Coimbra","Évora","Faro","Guarda","Leiria","Lisboa","Portalegre","Porto","Santarém","Setúbal","Viana do Castelo","Vila Real","Viseu"]
["Águeda","Aljustrel","Amares","Alfândega da Fé","Belmonte","Arganil","Alandroal","Lagoa","Aguiar da Beira","Óbidos","Alenquer","Alter do Chão","Valongo","Abrantes","Alcácer do Sal","Arcos de Valdevez","Alijó","Castro Daire"]
["Albergaria-a-Velha","Almodôvar","Barcelos","Bragança","Castelo Branco","Cantanhede","Arraiolos","Lagos","Almeida","Pedrógão Grande","Arruda dos Vinhos","Arronches","Vila do Conde","Alcanena","Alcochete","Caminha","Boticas","Cinfães"]
["Anadia","Alvito","Braga","Carrazeda de Ansiães","Covilhã","Coimbra","Borba","Loulé","Celorico da Beira","Peniche","Azambuja","Avis","Vila Nova de Gaia","Almeirim","Almada","Melgaço","Chaves","Lamego"]
["Arouca","Barrancos","Cabeceiras de Basto","Freixo de Espada à Cinta","Fundão","Condeixa-a-Nova","Estremoz","Monchique","Figueira de Castelo Rodrigo","Pombal","Cadaval","Campo Maior","Trofa","Alpiarça","Barreiro","Monção","Mesão Frio","Mangualde"]
["Aveiro","Beja","Celorico de Basto","Macedo de Cavaleiros","Idanha-a-Nova","Figueira da Foz","Évora","Olhão","Fornos de Algodres","Alcobaça","Cascais","Castelo de Vide","Amarante","Benavente","Grândola","Paredes de Coura","Mondim de Basto","Moimenta da Beira"]
["Castelo de Paiva","Castro Verde","Esposende","Miranda do Douro","Sertã","Góis","Montemor-o-Novo","Portimão","Gouveia","Alvaiázere","Lisboa","Crato","Baião","Cartaxo","Moita","Ponte da Barca","Montalegre","Mortágua"]
["Espinho","Cuba","Fafe","Mirandela","Vila de Rei","Lousã","Mora","São Brás de Alportel","Guarda","Ansião","Loures","Elvas","Felgueiras","Chamusca","Montijo","Ponte de Lima","Murça","Nelas"]
["Estarreja","Ferreira do Alentejo","Guimarães","Mogadouro","Vila Velha de Ródão","Mira","Mourão","Silves","Manteigas","Batalha","Lourinhã","Fronteira","Gondomar","Constância","Palmela","Valença","Peso da Régua","Oliveira de Frades"]
["Santa Maria da Feira","Mértola","Póvoa de Lanhoso","Torre de Moncorvo","Oleiros","Miranda do Corvo","Portel","Tavira","Meda","Bombarral","Mafra","Gavião","Lousada","Coruche","Santiago do Cacém","Viana do Castelo","Ribeira de Pena","Penalva do Castelo"]
["Ílhavo","Moura","Terras de Bouro","Vila Flor","Penamacor","Montemor-o-Velho","Redondo","Vila do Bispo","Pinhel","Caldas da Rainha","Oeiras","Marvão","Maia","Entroncamento","Seixal","Vila Nova de Cerveira","Sabrosa","Penedono"]
["Mealhada","Odemira","Vieira do Minho","Vimioso","Proença-a-Nova","Oliveira do Hospital","Reguengos de Monsaraz","Vila Real de Santo António","Sabugal","Castanheira de Pêra","Sintra","Monforte","Marco de Canaveses","Ferreira do Zêzere","Sesimbra",null,"Santa Marta de Penaguião","Resende"]
["Murtosa","Ourique","Vila Nova de Famalicão","Vinhais",null,"Pampilhosa da Serra","Vendas Novas","Albufeira","Seia","Figueiró dos Vinhos","Sobral de Monte Agraço","Nisa","Matosinhos","Golegã","Setúbal",null,"Valpaços","Santa Comba Dão"]
["Oliveira de Azeméis","Serpa","Vila Verde",null,null,"Penacova","Viana do Alentejo","Alcoutim","Trancoso","Leiria","Torres Vedras","Ponte de Sor","Paços de Ferreira","Mação","Sines",null,"Vila Pouca de Aguiar","São João da Pesqueira"]
["Oliveira do Bairro","Vidigueira","Vizela",null,null,"Penela","Vila Viçosa","Aljezur","Vila Nova de Foz Côa","Marinha Grande","Vila Franca de Xira","Portalegre","Paredes","Rio Maior",null,null,"Vila Real","São Pedro do Sul"]
["Ovar",null,null,null,null,"Soure",null,"Castro Marim",null,"Nazaré","Amadora","Sousel","Penafiel","Salvaterra de Magos",null,null,null,"Sátão"]
["São João da Madeira",null,null,null,null,"Tábua",null,"Faro",null,"Porto de Mós","Odivelas",null,"Porto","Santarém",null,null,null,"Sernancelhe"]
["Sever do Vouga",null,null,null,null,"Vila Nova de Poiares",null,null,null,null,null,null,"Póvoa de Varzim","Sardoal",null,null,null,"Tabuaço"]
["Vagos",null,null,null,null,null,null,null,null,null,null,null,"Santo Tirso","Tomar",null,null,null,"Tarouca"]
["Vale de Cambra",null,null,null,null,null,null,null,null,null,null,null,null,"Torres Novas",null,null,null,"Tondela"]
[null,null,null,null,null,null,null,null,null,null,null,null,null,"Vila Nova da Barquinha",null,null,null,"Vila Nova de Paiva"]
[null,null,null,null,null,null,null,null,null,null,null,null,null,"Ourém",null,null,null,"Viseu"]
[null,null,null,null,null,null,null,null,null,null,null,null,null,null,null,null,null,"Vouzela"]
[null,null,null,null,null,null,null,null,null,null,null,null,null,null,null,null,null,"Armamar"]
[null,null,null,null,null,null,null,null,null,null,null,null,null,null,null,null,null,"Carregal do Sal"]